{"text_format":"1","workbook":"xlsx","n_sheets":28,"sheets":["TIRAGE AU SORT","BENOIT ANAIS","BENSEDIRA Mohamed","BERTHIER Titouan","CAUMON Hugo","COMOROURE Jonas","CRUZ Ugo","DA FARIA Cassandra","DIDIERLAURENT Robin","ESSERTEL Julien","HOAREAU YAnnis","KISTER Océane","LAPASSET Eloi","LECOMTE Alexandra","LOISELEUR Clément","MEGDOUD Ahmed","MENTTON Clémence","NOGIER Samuel","PERRET Alexis","PIANCONE Margaux","RENAULT Amandine","RONDIER Maël","SCALIA Jilian","SEGUIN Justine","SERFATY LICHA Yona","SERGENTET Eline","SIBILE Chloé","ZANCA Thomas"],"not_rendered":{"charts":0,"images":2,"macros":1,"external_links":0,"defined_names":1,"comments":0,"pivot_tables":0},"unopened":[],"bounds":{"document_bytes":16777216,"sheet_cells":100000,"rows_first":2000,"rows_last":500,"rows_between":2000,"halvings":0,"cell_chars":16384,"cell_head_chars":4096},"cells_cut":0,"cells_raw":0,"read":"whole","date_system":"1900"}

{"sheet":"TIRAGE AU SORT","index":0,"n_rows":29,"n_cols":7,"rows_kept":29,"cut":false,"hidden":false,"merged":[]}
[null,null,"DOSSIER",null,null,"BILAN"]
[null,"NOM",null,null,"NOM"]
[null,"BENOIT Anais",null,null,"BENOIT Anais"]
[null,"BENSEDIRA Mohamed-Amine",null,{"$f":"INDEX(B3:B29,RANDBETWEEN(3,29))","v":"ESSERTEL Julien"},"BENSEDIRA Mohamed-Amine",null,{"$f":"INDEX(E3:E29,RANDBETWEEN(3,29))","v":"CAUMON Huho"}]
[null,"BERTHIER Titouan",null,{"$f":"INDEX(B4:B30,RANDBETWEEN(3,29))","v":"LOISELEUR Clément"},"BERTHIER Titouan",null,{"$f":"INDEX(E4:E30,RANDBETWEEN(3,29))","v":"RENAULT Amandine"}]
[null,"CAUMON Huho",null,{"$f":"INDEX(B5:B31,RANDBETWEEN(3,29))","v":"NOGIER Samuel"},"CAUMON Huho",null,{"$f":"INDEX(E5:E31,RANDBETWEEN(3,29))","v":"PIANCONE Margaux"}]
[null,"COMBOROURE Jonas",null,null,"COMBOROURE Jonas"]
[null,"CRUZ ugo",null,null,"CRUZ ugo"]
[null,"DE FARIA Cassandra",null,null,"DE FARIA Cassandra"]
[null,"DIDIERLAURENT Robin",null,null,"DIDIERLAURENT Robin"]
[null,"ESSERTEL Julien",null,null,"ESSERTEL Julien"]
[null,"HOARAU Yannis",null,null,"HOARAU Yannis"]
[null,"Kister Océane",null,null,"Kister Océane"]
[null,"LAPASSET Eloi",null,null,"LAPASSET Eloi"]
[null,"LECOMTE Alexandra",null,null,"LECOMTE Alexandra"]
[null,"LOISELEUR Clément",null,null,"LOISELEUR Clément"]
[null,"MEGDOUD Ahmed",null,null,"MEGDOUD Ahmed"]
[null,"METTON Clémence",null,null,"METTON Clémence"]
[null,"NOGIER Samuel",null,null,"NOGIER Samuel"]
[null,"PERRET Alexis",null,null,"PERRET Alexis"]
[null,"PIANCONE Margaux",null,null,"PIANCONE Margaux"]
[null,"RENAULT Amandine",null,null,"RENAULT Amandine"]
[null,"RONDIER Maël",null,null,"RONDIER Maël"]
[null,"SCALIA Jilian",null,null,"SCALIA Jilian"]
[null,"SEGUIN Justine",null,null,"SEGUIN Justine"]
[null,"SERATY LICHA Yona",null,null,"SERATY LICHA Yona"]
[null,"SERGENTET Eline",null,null,"SERGENTET Eline"]
[null,"SIBILLE Chloé",null,null,"SIBILLE Chloé"]
[null,"ZANCA Thomas",null,null,"ZANCA Thomas"]

{"sheet":"BENOIT ANAIS","index":1,"n_rows":26,"n_cols":21,"rows_kept":26,"cut":false,"hidden":false,"merged":[[16,18,19,18],[16,20,19,20],[16,21,19,21],[9,20,15,20],[9,18,15,18],[5,20,8,20],[5,18,8,18],[2,21,4,21],[5,21,8,21],[9,21,15,21],[14,9,18,9],[14,10,18,10],[19,7,21,7],[19,9,21,9],[19,10,21,10],[22,7,25,7],[22,9,25,9],[22,10,25,10],[2,10,4,10],[5,9,7,9],[5,10,7,10],[8,7,13,7],[8,9,13,9],[8,10,13,10]]}
[null,null,"Dossier",null,null,"Nombre de points attribués à cet item","Nombre de points obtenus",null,null,"BILAN",null,null,null,null,null,null,null,null,null,"HIERARCHISATION"]
[null,null,null,null,null,null,null,"TOTAL BILAN :",{"$f":"SUM(J6,J9,J15,J20,J23)","v":0},null,null,null,null,null,null,null,null,null,"TOTAL HIERARCHISATION:",null,{"$f":"SUM(U6,U10,U17)","v":0}]
[]
[" \"clarté\" de la présentation",null,null,null,null,2]
[null,null,null,null,null,null,null,"Critères évalués pour le bilan ostéopathique","Nombre de points attribués à cet item","Nombre de points obtenus",null,null,null,null,null,null,null,null,"Critères évalués pour la hiérarchisations des dysfonctions retrouvées au cours du bilan","Nombre de points attribués à cet item","Nombre de points obtenus"]
["Synthèse en 1 phrase du (des) motif(s) et de leur anamnèse",null,null,null,null,3,null,"Être capable de mener",null,null,null,null,null,null,null,null,null,null,"Être capable de proposer à la fin de chaque  routine de tests une hiérarchisation avec les connaissances  requises à l'instant \"t\""]
[null,null,null,null,null,"total dossier",{"$f":"SUM(G4,G6)","v":0},"une routine exhaustive de tests à réponse binaire"]
[null,null,null,null,null,null,null,null,3]
[null,null,"Note finale",null,{"$f":"SUM(G7,I2,U2)","v":0},null,null,"Être capable d'intercaler, dans la routine ostéopathique, les tests médicaux, indispensables, au vu du cas clinique",null,null,null,null,null,null,null,null,null,null,null,2]
[null,null,null,null,null,null,null,null,null,null,null,null,null,null,null,null,null,null,"Être capable de proposer oralement une chaîne dysfonctionnelle avec le soucis d'être cohérent, de se baser sur des élements anatomiques précis et des liens logiques, tout en s'obligeant à relier ces élements au substrat anatomique en jeu dans les différents motifs"]
[]
[null,null,null,null,null,null,null,null,1]
[]
[]
[null,null,null,null,null,null,null,"Être capable de gérer son \"attitude mentale\" face à un test ostéopathique positif :"]
[null,null,null,null,null,null,null,null,null,null,null,null,null,null,null,null,null,null,null,3]
[null,null,null,null,null,null,null,"quelle valeur lui accorder ?",null,null,null,null,null,null,null,null,null,null,"Être capable d'expliquer oralement, de manière synthétique et précises  les motivations de la hiérarchisation et les résultats obtenus"]
[null,null,null,null,null,null,null,"conditionne t'il la suite de ma routine de tests ?"]
[null,null,null,null,null,null,null,null,1]
[null,null,null,null,null,null,null,"Être capable d'autorégulation face à des élements du bilan qui paraissent à \"première vue\" incohérents",null,null,null,null,null,null,null,null,null,null,null,1]
[]
[null,null,null,null,null,null,null,null,2]
[null,null,null,null,null,null,null,"Faire preuve  de présence, d'intention, d'implication et de \"visualisation anatomique\" lors de la réalisation de la routine de tests"]
[]
[]
[null,null,null,null,null,null,null,null,2]

{"sheet":"BENSEDIRA Mohamed","index":2,"n_rows":26,"n_cols":21,"rows_kept":26,"cut":false,"hidden":false,"merged":[[16,21,19,21],[19,7,21,7],[19,9,21,9],[19,10,21,10],[22,7,25,7],[22,9,25,9],[22,10,25,10],[8,7,13,7],[8,9,13,9],[8,10,13,10],[9,18,15,18],[9,20,15,20],[9,21,15,21],[14,9,18,9],[14,10,18,10],[16,18,19,18],[16,20,19,20],[2,10,4,10],[2,21,4,21],[5,9,7,9],[5,10,7,10],[5,18,8,18],[5,20,8,20],[5,21,8,21]]}
[null,null,"Dossier",null,null,"Nombre de points attribués à cet item","Nombre de points obtenus",null,null,"BILAN",null,null,null,null,null,null,null,null,null,"HIERARCHISATION"]
[null,null,null,null,null,null,null,"TOTAL BILAN :",{"$f":"SUM(J6,J9,J15,J20,J23)","v":0},null,null,null,null,null,null,null,null,null,"TOTAL HIERARCHISATION:",null,{"$f":"SUM(U6,U10,U17)","v":0}]
[]
[" \"clarté\" de la présentation",null,null,null,null,2]
[null,null,null,null,null,null,null,"Critères évalués pour le bilan ostéopathique","Nombre de points attribués à cet item","Nombre de points obtenus",null,null,null,null,null,null,null,null,"Critères évalués pour la hiérarchisations des dysfonctions retrouvées au cours du bilan","Nombre de points attribués à cet item","Nombre de points obtenus"]
["Synthèse en 1 phrase du (des) motif(s) et de leur anamnèse",null,null,null,null,3,null,"Être capable de mener",null,null,null,null,null,null,null,null,null,null,"Être capable de proposer à la fin de chaque  routine de tests une hiérarchisation avec les connaissances  requises à l'instant \"t\""]
[null,null,null,null,null,"total dossier",{"$f":"SUM(G4,G6)","v":0},"une routine exhaustive de tests à réponse binaire"]
[null,null,null,null,null,null,null,null,3]
[null,null,"Note finale",null,{"$f":"SUM(G7,I2,U2)","v":0},null,null,"Être capable d'intercaler, dans la routine ostéopathique, les tests médicaux, indispensables, au vu du cas clinique",null,null,null,null,null,null,null,null,null,null,null,2]
[null,null,null,null,null,null,null,null,null,null,null,null,null,null,null,null,null,null,"Être capable de proposer oralement une chaîne dysfonctionnelle avec le soucis d'être cohérent, de se baser sur des élements anatomiques précis et des liens logiques, tout en s'obligeant à relier ces élements au substrat anatomique en jeu dans les différents motifs"]
[]
[null,null,null,null,null,null,null,null,1]
[]
[]
[null,null,null,null,null,null,null,"Être capable de gérer son \"attitude mentale\" face à un test ostéopathique positif :"]
[null,null,null,null,null,null,null,null,null,null,null,null,null,null,null,null,null,null,null,3]
[null,null,null,null,null,null,null,"quelle valeur lui accorder ?",null,null,null,null,null,null,null,null,null,null,"Être capable d'expliquer oralement, de manière synthétique et précises  les motivations de la hiérarchisation et les résultats obtenus"]
[null,null,null,null,null,null,null,"conditionne t'il la suite de ma routine de tests ?"]
[null,null,null,null,null,null,null,null,1]
[null,null,null,null,null,null,null,"Être capable d'autorégulation face à des élements du bilan qui paraissent à \"première vue\" incohérents",null,null,null,null,null,null,null,null,null,null,null,1]
[]
[null,null,null,null,null,null,null,null,2]
[null,null,null,null,null,null,null,"Faire preuve  de présence, d'intention, d'implication et de \"visualisation anatomique\" lors de la réalisation de la routine de tests"]
[]
[]
[null,null,null,null,null,null,null,null,2]

{"sheet":"BERTHIER Titouan","index":3,"n_rows":26,"n_cols":21,"rows_kept":26,"cut":false,"hidden":false,"merged":[[16,21,19,21],[19,7,21,7],[19,9,21,9],[19,10,21,10],[22,7,25,7],[22,9,25,9],[22,10,25,10],[8,7,13,7],[8,9,13,9],[8,10,13,10],[9,18,15,18],[9,20,15,20],[9,21,15,21],[14,9,18,9],[14,10,18,10],[16,18,19,18],[16,20,19,20],[2,10,4,10],[2,21,4,21],[5,9,7,9],[5,10,7,10],[5,18,8,18],[5,20,8,20],[5,21,8,21]]}
[null,null,"Dossier",null,null,"Nombre de points attribués à cet item","Nombre de points obtenus",null,null,"BILAN",null,null,null,null,null,null,null,null,null,"HIERARCHISATION"]
[null,null,null,null,null,null,null,"TOTAL BILAN :",{"$f":"SUM(J6,J9,J15,J20,J23)","v":0},null,null,null,null,null,null,null,null,null,"TOTAL HIERARCHISATION:",null,{"$f":"SUM(U6,U10,U17)","v":0}]
[]
[" \"clarté\" de la présentation",null,null,null,null,2]
[null,null,null,null,null,null,null,"Critères évalués pour le bilan ostéopathique","Nombre de points attribués à cet item","Nombre de points obtenus",null,null,null,null,null,null,null,null,"Critères évalués pour la hiérarchisations des dysfonctions retrouvées au cours du bilan","Nombre de points attribués à cet item","Nombre de points obtenus"]
["Synthèse en 1 phrase du (des) motif(s) et de leur anamnèse",null,null,null,null,3,null,"Être capable de mener",null,null,null,null,null,null,null,null,null,null,"Être capable de proposer à la fin de chaque  routine de tests une hiérarchisation avec les connaissances  requises à l'instant \"t\""]
[null,null,null,null,null,"total dossier",{"$f":"SUM(G4,G6)","v":0},"une routine exhaustive de tests à réponse binaire"]
[null,null,null,null,null,null,null,null,3]
[null,null,"Note finale",null,{"$f":"SUM(G7,I2,U2)","v":0},null,null,"Être capable d'intercaler, dans la routine ostéopathique, les tests médicaux, indispensables, au vu du cas clinique",null,null,null,null,null,null,null,null,null,null,null,2]
[null,null,null,null,null,null,null,null,null,null,null,null,null,null,null,null,null,null,"Être capable de proposer oralement une chaîne dysfonctionnelle avec le soucis d'être cohérent, de se baser sur des élements anatomiques précis et des liens logiques, tout en s'obligeant à relier ces élements au substrat anatomique en jeu dans les différents motifs"]
[]
[null,null,null,null,null,null,null,null,1]
[]
[]
[null,null,null,null,null,null,null,"Être capable de gérer son \"attitude mentale\" face à un test ostéopathique positif :"]
[null,null,null,null,null,null,null,null,null,null,null,null,null,null,null,null,null,null,null,3]
[null,null,null,null,null,null,null,"quelle valeur lui accorder ?",null,null,null,null,null,null,null,null,null,null,"Être capable d'expliquer oralement, de manière synthétique et précises  les motivations de la hiérarchisation et les résultats obtenus"]
[null,null,null,null,null,null,null,"conditionne t'il la suite de ma routine de tests ?"]
[null,null,null,null,null,null,null,null,1]
[null,null,null,null,null,null,null,"Être capable d'autorégulation face à des élements du bilan qui paraissent à \"première vue\" incohérents",null,null,null,null,null,null,null,null,null,null,null,1]
[]
[null,null,null,null,null,null,null,null,2]
[null,null,null,null,null,null,null,"Faire preuve  de présence, d'intention, d'implication et de \"visualisation anatomique\" lors de la réalisation de la routine de tests"]
[]
[]
[null,null,null,null,null,null,null,null,2]

{"sheet":"CAUMON Hugo","index":4,"n_rows":26,"n_cols":21,"rows_kept":26,"cut":false,"hidden":false,"merged":[[16,21,19,21],[19,7,21,7],[19,9,21,9],[19,10,21,10],[22,7,25,7],[22,9,25,9],[22,10,25,10],[8,7,13,7],[8,9,13,9],[8,10,13,10],[9,18,15,18],[9,20,15,20],[9,21,15,21],[14,9,18,9],[14,10,18,10],[16,18,19,18],[16,20,19,20],[2,10,4,10],[2,21,4,21],[5,9,7,9],[5,10,7,10],[5,18,8,18],[5,20,8,20],[5,21,8,21]]}
[null,null,"Dossier",null,null,"Nombre de points attribués à cet item","Nombre de points obtenus",null,null,"BILAN",null,null,null,null,null,null,null,null,null,"HIERARCHISATION"]
[null,null,null,null,null,null,null,"TOTAL BILAN :",{"$f":"SUM(J6,J9,J15,J20,J23)","v":0},null,null,null,null,null,null,null,null,null,"TOTAL HIERARCHISATION:",null,{"$f":"SUM(U6,U10,U17)","v":0}]
[]
[" \"clarté\" de la présentation",null,null,null,null,2]
[null,null,null,null,null,null,null,"Critères évalués pour le bilan ostéopathique","Nombre de points attribués à cet item","Nombre de points obtenus",null,null,null,null,null,null,null,null,"Critères évalués pour la hiérarchisations des dysfonctions retrouvées au cours du bilan","Nombre de points attribués à cet item","Nombre de points obtenus"]
["Synthèse en 1 phrase du (des) motif(s) et de leur anamnèse",null,null,null,null,3,null,"Être capable de mener",null,null,null,null,null,null,null,null,null,null,"Être capable de proposer à la fin de chaque  routine de tests une hiérarchisation avec les connaissances  requises à l'instant \"t\""]
[null,null,null,null,null,"total dossier",{"$f":"SUM(G4,G6)","v":0},"une routine exhaustive de tests à réponse binaire"]
[null,null,null,null,null,null,null,null,3]
[null,null,"Note finale",null,{"$f":"SUM(G7,I2,U2)","v":0},null,null,"Être capable d'intercaler, dans la routine ostéopathique, les tests médicaux, indispensables, au vu du cas clinique",null,null,null,null,null,null,null,null,null,null,null,2]
[null,null,null,null,null,null,null,null,null,null,null,null,null,null,null,null,null,null,"Être capable de proposer oralement une chaîne dysfonctionnelle avec le soucis d'être cohérent, de se baser sur des élements anatomiques précis et des liens logiques, tout en s'obligeant à relier ces élements au substrat anatomique en jeu dans les différents motifs"]
[]
[null,null,null,null,null,null,null,null,1]
[]
[]
[null,null,null,null,null,null,null,"Être capable de gérer son \"attitude mentale\" face à un test ostéopathique positif :"]
[null,null,null,null,null,null,null,null,null,null,null,null,null,null,null,null,null,null,null,3]
[null,null,null,null,null,null,null,"quelle valeur lui accorder ?",null,null,null,null,null,null,null,null,null,null,"Être capable d'expliquer oralement, de manière synthétique et précises  les motivations de la hiérarchisation et les résultats obtenus"]
[null,null,null,null,null,null,null,"conditionne t'il la suite de ma routine de tests ?"]
[null,null,null,null,null,null,null,null,1]
[null,null,null,null,null,null,null,"Être capable d'autorégulation face à des élements du bilan qui paraissent à \"première vue\" incohérents",null,null,null,null,null,null,null,null,null,null,null,1]
[]
[null,null,null,null,null,null,null,null,2]
[null,null,null,null,null,null,null,"Faire preuve  de présence, d'intention, d'implication et de \"visualisation anatomique\" lors de la réalisation de la routine de tests"]
[]
[]
[null,null,null,null,null,null,null,null,2]

{"sheet":"COMOROURE Jonas","index":5,"n_rows":26,"n_cols":21,"rows_kept":26,"cut":false,"hidden":false,"merged":[[16,21,19,21],[19,7,21,7],[19,9,21,9],[19,10,21,10],[22,7,25,7],[22,9,25,9],[22,10,25,10],[8,7,13,7],[8,9,13,9],[8,10,13,10],[9,18,15,18],[9,20,15,20],[9,21,15,21],[14,9,18,9],[14,10,18,10],[16,18,19,18],[16,20,19,20],[2,10,4,10],[2,21,4,21],[5,9,7,9],[5,10,7,10],[5,18,8,18],[5,20,8,20],[5,21,8,21]]}
[null,null,"Dossier",null,null,"Nombre de points attribués à cet item","Nombre de points obtenus",null,null,"BILAN",null,null,null,null,null,null,null,null,null,"HIERARCHISATION"]
[null,null,null,null,null,null,null,"TOTAL BILAN :",{"$f":"SUM(J6,J9,J15,J20,J23)","v":0},null,null,null,null,null,null,null,null,null,"TOTAL HIERARCHISATION:",null,{"$f":"SUM(U6,U10,U17)","v":0}]
[]
[" \"clarté\" de la présentation",null,null,null,null,2]
[null,null,null,null,null,null,null,"Critères évalués pour le bilan ostéopathique","Nombre de points attribués à cet item","Nombre de points obtenus",null,null,null,null,null,null,null,null,"Critères évalués pour la hiérarchisations des dysfonctions retrouvées au cours du bilan","Nombre de points attribués à cet item","Nombre de points obtenus"]
["Synthèse en 1 phrase du (des) motif(s) et de leur anamnèse",null,null,null,null,3,null,"Être capable de mener",null,null,null,null,null,null,null,null,null,null,"Être capable de proposer à la fin de chaque  routine de tests une hiérarchisation avec les connaissances  requises à l'instant \"t\""]
[null,null,null,null,null,"total dossier",{"$f":"SUM(G4,G6)","v":0},"une routine exhaustive de tests à réponse binaire"]
[null,null,null,null,null,null,null,null,3]
[null,null,"Note finale",null,{"$f":"SUM(G7,I2,U2)","v":0},null,null,"Être capable d'intercaler, dans la routine ostéopathique, les tests médicaux, indispensables, au vu du cas clinique",null,null,null,null,null,null,null,null,null,null,null,2]
[null,null,null,null,null,null,null,null,null,null,null,null,null,null,null,null,null,null,"Être capable de proposer oralement une chaîne dysfonctionnelle avec le soucis d'être cohérent, de se baser sur des élements anatomiques précis et des liens logiques, tout en s'obligeant à relier ces élements au substrat anatomique en jeu dans les différents motifs"]
[]
[null,null,null,null,null,null,null,null,1]
[]
[]
[null,null,null,null,null,null,null,"Être capable de gérer son \"attitude mentale\" face à un test ostéopathique positif :"]
[null,null,null,null,null,null,null,null,null,null,null,null,null,null,null,null,null,null,null,3]
[null,null,null,null,null,null,null,"quelle valeur lui accorder ?",null,null,null,null,null,null,null,null,null,null,"Être capable d'expliquer oralement, de manière synthétique et précises  les motivations de la hiérarchisation et les résultats obtenus"]
[null,null,null,null,null,null,null,"conditionne t'il la suite de ma routine de tests ?"]
[null,null,null,null,null,null,null,null,1]
[null,null,null,null,null,null,null,"Être capable d'autorégulation face à des élements du bilan qui paraissent à \"première vue\" incohérents",null,null,null,null,null,null,null,null,null,null,null,1]
[]
[null,null,null,null,null,null,null,null,2]
[null,null,null,null,null,null,null,"Faire preuve  de présence, d'intention, d'implication et de \"visualisation anatomique\" lors de la réalisation de la routine de tests"]
[]
[]
[null,null,null,null,null,null,null,null,2]

{"sheet":"CRUZ Ugo","index":6,"n_rows":26,"n_cols":21,"rows_kept":26,"cut":false,"hidden":false,"merged":[[16,21,19,21],[19,7,21,7],[19,9,21,9],[19,10,21,10],[22,7,25,7],[22,9,25,9],[22,10,25,10],[8,7,13,7],[8,9,13,9],[8,10,13,10],[9,18,15,18],[9,20,15,20],[9,21,15,21],[14,9,18,9],[14,10,18,10],[16,18,19,18],[16,20,19,20],[2,10,4,10],[2,21,4,21],[5,9,7,9],[5,10,7,10],[5,18,8,18],[5,20,8,20],[5,21,8,21]]}
[null,null,"Dossier",null,null,"Nombre de points attribués à cet item","Nombre de points obtenus",null,null,"BILAN",null,null,null,null,null,null,null,null,null,"HIERARCHISATION"]
[null,null,null,null,null,null,null,"TOTAL BILAN :",{"$f":"SUM(J6,J9,J15,J20,J23)","v":0},null,null,null,null,null,null,null,null,null,"TOTAL HIERARCHISATION:",null,{"$f":"SUM(U6,U10,U17)","v":0}]
[]
[" \"clarté\" de la présentation",null,null,null,null,2]
[null,null,null,null,null,null,null,"Critères évalués pour le bilan ostéopathique","Nombre de points attribués à cet item","Nombre de points obtenus",null,null,null,null,null,null,null,null,"Critères évalués pour la hiérarchisations des dysfonctions retrouvées au cours du bilan","Nombre de points attribués à cet item","Nombre de points obtenus"]
["Synthèse en 1 phrase du (des) motif(s) et de leur anamnèse",null,null,null,null,3,null,"Être capable de mener",null,null,null,null,null,null,null,null,null,null,"Être capable de proposer à la fin de chaque  routine de tests une hiérarchisation avec les connaissances  requises à l'instant \"t\""]
[null,null,null,null,null,"total dossier",{"$f":"SUM(G4,G6)","v":0},"une routine exhaustive de tests à réponse binaire"]
[null,null,null,null,null,null,null,null,3]
[null,null,"Note finale",null,{"$f":"SUM(G7,I2,U2)","v":0},null,null,"Être capable d'intercaler, dans la routine ostéopathique, les tests médicaux, indispensables, au vu du cas clinique",null,null,null,null,null,null,null,null,null,null,null,2]
[null,null,null,null,null,null,null,null,null,null,null,null,null,null,null,null,null,null,"Être capable de proposer oralement une chaîne dysfonctionnelle avec le soucis d'être cohérent, de se baser sur des élements anatomiques précis et des liens logiques, tout en s'obligeant à relier ces élements au substrat anatomique en jeu dans les différents motifs"]
[]
[null,null,null,null,null,null,null,null,1]
[]
[]
[null,null,null,null,null,null,null,"Être capable de gérer son \"attitude mentale\" face à un test ostéopathique positif :"]
[null,null,null,null,null,null,null,null,null,null,null,null,null,null,null,null,null,null,null,3]
[null,null,null,null,null,null,null,"quelle valeur lui accorder ?",null,null,null,null,null,null,null,null,null,null,"Être capable d'expliquer oralement, de manière synthétique et précises  les motivations de la hiérarchisation et les résultats obtenus"]
[null,null,null,null,null,null,null,"conditionne t'il la suite de ma routine de tests ?"]
[null,null,null,null,null,null,null,null,1]
[null,null,null,null,null,null,null,"Être capable d'autorégulation face à des élements du bilan qui paraissent à \"première vue\" incohérents",null,null,null,null,null,null,null,null,null,null,null,1]
[]
[null,null,null,null,null,null,null,null,2]
[null,null,null,null,null,null,null,"Faire preuve  de présence, d'intention, d'implication et de \"visualisation anatomique\" lors de la réalisation de la routine de tests"]
[]
[]
[null,null,null,null,null,null,null,null,2]

{"sheet":"DA FARIA Cassandra","index":7,"n_rows":26,"n_cols":21,"rows_kept":26,"cut":false,"hidden":false,"merged":[[16,21,19,21],[19,7,21,7],[19,9,21,9],[19,10,21,10],[22,7,25,7],[22,9,25,9],[22,10,25,10],[8,7,13,7],[8,9,13,9],[8,10,13,10],[9,18,15,18],[9,20,15,20],[9,21,15,21],[14,9,18,9],[14,10,18,10],[16,18,19,18],[16,20,19,20],[2,10,4,10],[2,21,4,21],[5,9,7,9],[5,10,7,10],[5,18,8,18],[5,20,8,20],[5,21,8,21]]}
[null,null,"Dossier",null,null,"Nombre de points attribués à cet item","Nombre de points obtenus",null,null,"BILAN",null,null,null,null,null,null,null,null,null,"HIERARCHISATION"]
[null,null,null,null,null,null,null,"TOTAL BILAN :",{"$f":"SUM(J6,J9,J15,J20,J23)","v":0},null,null,null,null,null,null,null,null,null,"TOTAL HIERARCHISATION:",null,{"$f":"SUM(U6,U10,U17)","v":0}]
[]
[" \"clarté\" de la présentation",null,null,null,null,2]
[null,null,null,null,null,null,null,"Critères évalués pour le bilan ostéopathique","Nombre de points attribués à cet item","Nombre de points obtenus",null,null,null,null,null,null,null,null,"Critères évalués pour la hiérarchisations des dysfonctions retrouvées au cours du bilan","Nombre de points attribués à cet item","Nombre de points obtenus"]
["Synthèse en 1 phrase du (des) motif(s) et de leur anamnèse",null,null,null,null,3,null,"Être capable de mener",null,null,null,null,null,null,null,null,null,null,"Être capable de proposer à la fin de chaque  routine de tests une hiérarchisation avec les connaissances  requises à l'instant \"t\""]
[null,null,null,null,null,"total dossier",{"$f":"SUM(G4,G6)","v":0},"une routine exhaustive de tests à réponse binaire"]
[null,null,null,null,null,null,null,null,3]
[null,null,"Note finale",null,{"$f":"SUM(G7,I2,U2)","v":0},null,null,"Être capable d'intercaler, dans la routine ostéopathique, les tests médicaux, indispensables, au vu du cas clinique",null,null,null,null,null,null,null,null,null,null,null,2]
[null,null,null,null,null,null,null,null,null,null,null,null,null,null,null,null,null,null,"Être capable de proposer oralement une chaîne dysfonctionnelle avec le soucis d'être cohérent, de se baser sur des élements anatomiques précis et des liens logiques, tout en s'obligeant à relier ces élements au substrat anatomique en jeu dans les différents motifs"]
[]
[null,null,null,null,null,null,null,null,1]
[]
[]
[null,null,null,null,null,null,null,"Être capable de gérer son \"attitude mentale\" face à un test ostéopathique positif :"]
[null,null,null,null,null,null,null,null,null,null,null,null,null,null,null,null,null,null,null,3]
[null,null,null,null,null,null,null,"quelle valeur lui accorder ?",null,null,null,null,null,null,null,null,null,null,"Être capable d'expliquer oralement, de manière synthétique et précises  les motivations de la hiérarchisation et les résultats obtenus"]
[null,null,null,null,null,null,null,"conditionne t'il la suite de ma routine de tests ?"]
[null,null,null,null,null,null,null,null,1]
[null,null,null,null,null,null,null,"Être capable d'autorégulation face à des élements du bilan qui paraissent à \"première vue\" incohérents",null,null,null,null,null,null,null,null,null,null,null,1]
[]
[null,null,null,null,null,null,null,null,2]
[null,null,null,null,null,null,null,"Faire preuve  de présence, d'intention, d'implication et de \"visualisation anatomique\" lors de la réalisation de la routine de tests"]
[]
[]
[null,null,null,null,null,null,null,null,2]

{"sheet":"DIDIERLAURENT Robin","index":8,"n_rows":26,"n_cols":21,"rows_kept":26,"cut":false,"hidden":false,"merged":[[16,21,19,21],[19,7,21,7],[19,9,21,9],[19,10,21,10],[22,7,25,7],[22,9,25,9],[22,10,25,10],[8,7,13,7],[8,9,13,9],[8,10,13,10],[9,18,15,18],[9,20,15,20],[9,21,15,21],[14,9,18,9],[14,10,18,10],[16,18,19,18],[16,20,19,20],[2,10,4,10],[2,21,4,21],[5,9,7,9],[5,10,7,10],[5,18,8,18],[5,20,8,20],[5,21,8,21]]}
[null,null,"Dossier",null,null,"Nombre de points attribués à cet item","Nombre de points obtenus",null,null,"BILAN",null,null,null,null,null,null,null,null,null,"HIERARCHISATION"]
[null,null,null,null,null,null,null,"TOTAL BILAN :",{"$f":"SUM(J6,J9,J15,J20,J23)","v":0},null,null,null,null,null,null,null,null,null,"TOTAL HIERARCHISATION:",null,{"$f":"SUM(U6,U10,U17)","v":0}]
[]
[" \"clarté\" de la présentation",null,null,null,null,2]
[null,null,null,null,null,null,null,"Critères évalués pour le bilan ostéopathique","Nombre de points attribués à cet item","Nombre de points obtenus",null,null,null,null,null,null,null,null,"Critères évalués pour la hiérarchisations des dysfonctions retrouvées au cours du bilan","Nombre de points attribués à cet item","Nombre de points obtenus"]
["Synthèse en 1 phrase du (des) motif(s) et de leur anamnèse",null,null,null,null,3,null,"Être capable de mener",null,null,null,null,null,null,null,null,null,null,"Être capable de proposer à la fin de chaque  routine de tests une hiérarchisation avec les connaissances  requises à l'instant \"t\""]
[null,null,null,null,null,"total dossier",{"$f":"SUM(G4,G6)","v":0},"une routine exhaustive de tests à réponse binaire"]
[null,null,null,null,null,null,null,null,3]
[null,null,"Note finale",null,{"$f":"SUM(G7,I2,U2)","v":0},null,null,"Être capable d'intercaler, dans la routine ostéopathique, les tests médicaux, indispensables, au vu du cas clinique",null,null,null,null,null,null,null,null,null,null,null,2]
[null,null,null,null,null,null,null,null,null,null,null,null,null,null,null,null,null,null,"Être capable de proposer oralement une chaîne dysfonctionnelle avec le soucis d'être cohérent, de se baser sur des élements anatomiques précis et des liens logiques, tout en s'obligeant à relier ces élements au substrat anatomique en jeu dans les différents motifs"]
[]
[null,null,null,null,null,null,null,null,1]
[]
[]
[null,null,null,null,null,null,null,"Être capable de gérer son \"attitude mentale\" face à un test ostéopathique positif :"]
[null,null,null,null,null,null,null,null,null,null,null,null,null,null,null,null,null,null,null,3]
[null,null,null,null,null,null,null,"quelle valeur lui accorder ?",null,null,null,null,null,null,null,null,null,null,"Être capable d'expliquer oralement, de manière synthétique et précises  les motivations de la hiérarchisation et les résultats obtenus"]
[null,null,null,null,null,null,null,"conditionne t'il la suite de ma routine de tests ?"]
[null,null,null,null,null,null,null,null,1]
[null,null,null,null,null,null,null,"Être capable d'autorégulation face à des élements du bilan qui paraissent à \"première vue\" incohérents",null,null,null,null,null,null,null,null,null,null,null,1]
[]
[null,null,null,null,null,null,null,null,2]
[null,null,null,null,null,null,null,"Faire preuve  de présence, d'intention, d'implication et de \"visualisation anatomique\" lors de la réalisation de la routine de tests"]
[]
[]
[null,null,null,null,null,null,null,null,2]

{"sheet":"ESSERTEL Julien","index":9,"n_rows":26,"n_cols":21,"rows_kept":26,"cut":false,"hidden":false,"merged":[[16,21,19,21],[19,7,21,7],[19,9,21,9],[19,10,21,10],[22,7,25,7],[22,9,25,9],[22,10,25,10],[8,7,13,7],[8,9,13,9],[8,10,13,10],[9,18,15,18],[9,20,15,20],[9,21,15,21],[14,9,18,9],[14,10,18,10],[16,18,19,18],[16,20,19,20],[2,10,4,10],[2,21,4,21],[5,9,7,9],[5,10,7,10],[5,18,8,18],[5,20,8,20],[5,21,8,21]]}
[null,null,"Dossier",null,null,"Nombre de points attribués à cet item","Nombre de points obtenus",null,null,"BILAN",null,null,null,null,null,null,null,null,null,"HIERARCHISATION"]
[null,null,null,null,null,null,null,"TOTAL BILAN :",{"$f":"SUM(J6,J9,J15,J20,J23)","v":0},null,null,null,null,null,null,null,null,null,"TOTAL HIERARCHISATION:",null,{"$f":"SUM(U6,U10,U17)","v":0}]
[]
[" \"clarté\" de la présentation",null,null,null,null,2]
[null,null,null,null,null,null,null,"Critères évalués pour le bilan ostéopathique","Nombre de points attribués à cet item","Nombre de points obtenus",null,null,null,null,null,null,null,null,"Critères évalués pour la hiérarchisations des dysfonctions retrouvées au cours du bilan","Nombre de points attribués à cet item","Nombre de points obtenus"]
["Synthèse en 1 phrase du (des) motif(s) et de leur anamnèse",null,null,null,null,3,null,"Être capable de mener",null,null,null,null,null,null,null,null,null,null,"Être capable de proposer à la fin de chaque  routine de tests une hiérarchisation avec les connaissances  requises à l'instant \"t\""]
[null,null,null,null,null,"total dossier",{"$f":"SUM(G4,G6)","v":0},"une routine exhaustive de tests à réponse binaire"]
[null,null,null,null,null,null,null,null,3]
[null,null,"Note finale",null,{"$f":"SUM(G7,I2,U2)","v":0},null,null,"Être capable d'intercaler, dans la routine ostéopathique, les tests médicaux, indispensables, au vu du cas clinique",null,null,null,null,null,null,null,null,null,null,null,2]
[null,null,null,null,null,null,null,null,null,null,null,null,null,null,null,null,null,null,"Être capable de proposer oralement une chaîne dysfonctionnelle avec le soucis d'être cohérent, de se baser sur des élements anatomiques précis et des liens logiques, tout en s'obligeant à relier ces élements au substrat anatomique en jeu dans les différents motifs"]
[]
[null,null,null,null,null,null,null,null,1]
[]
[]
[null,null,null,null,null,null,null,"Être capable de gérer son \"attitude mentale\" face à un test ostéopathique positif :"]
[null,null,null,null,null,null,null,null,null,null,null,null,null,null,null,null,null,null,null,3]
[null,null,null,null,null,null,null,"quelle valeur lui accorder ?",null,null,null,null,null,null,null,null,null,null,"Être capable d'expliquer oralement, de manière synthétique et précises  les motivations de la hiérarchisation et les résultats obtenus"]
[null,null,null,null,null,null,null,"conditionne t'il la suite de ma routine de tests ?"]
[null,null,null,null,null,null,null,null,1]
[null,null,null,null,null,null,null,"Être capable d'autorégulation face à des élements du bilan qui paraissent à \"première vue\" incohérents",null,null,null,null,null,null,null,null,null,null,null,1]
[]
[null,null,null,null,null,null,null,null,2]
[null,null,null,null,null,null,null,"Faire preuve  de présence, d'intention, d'implication et de \"visualisation anatomique\" lors de la réalisation de la routine de tests"]
[]
[]
[null,null,null,null,null,null,null,null,2]

{"sheet":"HOAREAU YAnnis","index":10,"n_rows":26,"n_cols":21,"rows_kept":26,"cut":false,"hidden":false,"merged":[[16,21,19,21],[19,7,21,7],[19,9,21,9],[19,10,21,10],[22,7,25,7],[22,9,25,9],[22,10,25,10],[8,7,13,7],[8,9,13,9],[8,10,13,10],[9,18,15,18],[9,20,15,20],[9,21,15,21],[14,9,18,9],[14,10,18,10],[16,18,19,18],[16,20,19,20],[2,10,4,10],[2,21,4,21],[5,9,7,9],[5,10,7,10],[5,18,8,18],[5,20,8,20],[5,21,8,21]]}
[null,null,"Dossier",null,null,"Nombre de points attribués à cet item","Nombre de points obtenus",null,null,"BILAN",null,null,null,null,null,null,null,null,null,"HIERARCHISATION"]
[null,null,null,null,null,null,null,"TOTAL BILAN :",{"$f":"SUM(J6,J9,J15,J20,J23)","v":0},null,null,null,null,null,null,null,null,null,"TOTAL HIERARCHISATION:",null,{"$f":"SUM(U6,U10,U17)","v":0}]
[]
[" \"clarté\" de la présentation",null,null,null,null,2]
[null,null,null,null,null,null,null,"Critères évalués pour le bilan ostéopathique","Nombre de points attribués à cet item","Nombre de points obtenus",null,null,null,null,null,null,null,null,"Critères évalués pour la hiérarchisations des dysfonctions retrouvées au cours du bilan","Nombre de points attribués à cet item","Nombre de points obtenus"]
["Synthèse en 1 phrase du (des) motif(s) et de leur anamnèse",null,null,null,null,3,null,"Être capable de mener",null,null,null,null,null,null,null,null,null,null,"Être capable de proposer à la fin de chaque  routine de tests une hiérarchisation avec les connaissances  requises à l'instant \"t\""]
[null,null,null,null,null,"total dossier",{"$f":"SUM(G4,G6)","v":0},"une routine exhaustive de tests à réponse binaire"]
[null,null,null,null,null,null,null,null,3]
[null,null,"Note finale",null,{"$f":"SUM(G7,I2,U2)","v":0},null,null,"Être capable d'intercaler, dans la routine ostéopathique, les tests médicaux, indispensables, au vu du cas clinique",null,null,null,null,null,null,null,null,null,null,null,2]
[null,null,null,null,null,null,null,null,null,null,null,null,null,null,null,null,null,null,"Être capable de proposer oralement une chaîne dysfonctionnelle avec le soucis d'être cohérent, de se baser sur des élements anatomiques précis et des liens logiques, tout en s'obligeant à relier ces élements au substrat anatomique en jeu dans les différents motifs"]
[]
[null,null,null,null,null,null,null,null,1]
[]
[]
[null,null,null,null,null,null,null,"Être capable de gérer son \"attitude mentale\" face à un test ostéopathique positif :"]
[null,null,null,null,null,null,null,null,null,null,null,null,null,null,null,null,null,null,null,3]
[null,null,null,null,null,null,null,"quelle valeur lui accorder ?",null,null,null,null,null,null,null,null,null,null,"Être capable d'expliquer oralement, de manière synthétique et précises  les motivations de la hiérarchisation et les résultats obtenus"]
[null,null,null,null,null,null,null,"conditionne t'il la suite de ma routine de tests ?"]
[null,null,null,null,null,null,null,null,1]
[null,null,null,null,null,null,null,"Être capable d'autorégulation face à des élements du bilan qui paraissent à \"première vue\" incohérents",null,null,null,null,null,null,null,null,null,null,null,1]
[]
[null,null,null,null,null,null,null,null,2]
[null,null,null,null,null,null,null,"Faire preuve  de présence, d'intention, d'implication et de \"visualisation anatomique\" lors de la réalisation de la routine de tests"]
[]
[]
[null,null,null,null,null,null,null,null,2]

{"sheet":"KISTER Océane","index":11,"n_rows":26,"n_cols":21,"rows_kept":26,"cut":false,"hidden":false,"merged":[[16,21,19,21],[19,7,21,7],[19,9,21,9],[19,10,21,10],[22,7,25,7],[22,9,25,9],[22,10,25,10],[8,7,13,7],[8,9,13,9],[8,10,13,10],[9,18,15,18],[9,20,15,20],[9,21,15,21],[14,9,18,9],[14,10,18,10],[16,18,19,18],[16,20,19,20],[2,10,4,10],[2,21,4,21],[5,9,7,9],[5,10,7,10],[5,18,8,18],[5,20,8,20],[5,21,8,21]]}
[null,null,"Dossier",null,null,"Nombre de points attribués à cet item","Nombre de points obtenus",null,null,"BILAN",null,null,null,null,null,null,null,null,null,"HIERARCHISATION"]
[null,null,null,null,null,null,null,"TOTAL BILAN :",{"$f":"SUM(J6,J9,J15,J20,J23)","v":0},null,null,null,null,null,null,null,null,null,"TOTAL HIERARCHISATION:",null,{"$f":"SUM(U6,U10,U17)","v":0}]
[]
[" \"clarté\" de la présentation",null,null,null,null,2]
[null,null,null,null,null,null,null,"Critères évalués pour le bilan ostéopathique","Nombre de points attribués à cet item","Nombre de points obtenus",null,null,null,null,null,null,null,null,"Critères évalués pour la hiérarchisations des dysfonctions retrouvées au cours du bilan","Nombre de points attribués à cet item","Nombre de points obtenus"]
["Synthèse en 1 phrase du (des) motif(s) et de leur anamnèse",null,null,null,null,3,null,"Être capable de mener",null,null,null,null,null,null,null,null,null,null,"Être capable de proposer à la fin de chaque  routine de tests une hiérarchisation avec les connaissances  requises à l'instant \"t\""]
[null,null,null,null,null,"total dossier",{"$f":"SUM(G4,G6)","v":0},"une routine exhaustive de tests à réponse binaire"]
[null,null,null,null,null,null,null,null,3]
[null,null,"Note finale",null,{"$f":"SUM(G7,I2,U2)","v":0},null,null,"Être capable d'intercaler, dans la routine ostéopathique, les tests médicaux, indispensables, au vu du cas clinique",null,null,null,null,null,null,null,null,null,null,null,2]
[null,null,null,null,null,null,null,null,null,null,null,null,null,null,null,null,null,null,"Être capable de proposer oralement une chaîne dysfonctionnelle avec le soucis d'être cohérent, de se baser sur des élements anatomiques précis et des liens logiques, tout en s'obligeant à relier ces élements au substrat anatomique en jeu dans les différents motifs"]
[]
[null,null,null,null,null,null,null,null,1]
[]
[]
[null,null,null,null,null,null,null,"Être capable de gérer son \"attitude mentale\" face à un test ostéopathique positif :"]
[null,null,null,null,null,null,null,null,null,null,null,null,null,null,null,null,null,null,null,3]
[null,null,null,null,null,null,null,"quelle valeur lui accorder ?",null,null,null,null,null,null,null,null,null,null,"Être capable d'expliquer oralement, de manière synthétique et précises  les motivations de la hiérarchisation et les résultats obtenus"]
[null,null,null,null,null,null,null,"conditionne t'il la suite de ma routine de tests ?"]
[null,null,null,null,null,null,null,null,1]
[null,null,null,null,null,null,null,"Être capable d'autorégulation face à des élements du bilan qui paraissent à \"première vue\" incohérents",null,null,null,null,null,null,null,null,null,null,null,1]
[]
[null,null,null,null,null,null,null,null,2]
[null,null,null,null,null,null,null,"Faire preuve  de présence, d'intention, d'implication et de \"visualisation anatomique\" lors de la réalisation de la routine de tests"]
[]
[]
[null,null,null,null,null,null,null,null,2]

{"sheet":"LAPASSET Eloi","index":12,"n_rows":26,"n_cols":21,"rows_kept":26,"cut":false,"hidden":false,"merged":[[16,21,19,21],[19,7,21,7],[19,9,21,9],[19,10,21,10],[22,7,25,7],[22,9,25,9],[22,10,25,10],[8,7,13,7],[8,9,13,9],[8,10,13,10],[9,18,15,18],[9,20,15,20],[9,21,15,21],[14,9,18,9],[14,10,18,10],[16,18,19,18],[16,20,19,20],[2,10,4,10],[2,21,4,21],[5,9,7,9],[5,10,7,10],[5,18,8,18],[5,20,8,20],[5,21,8,21]]}
[null,null,"Dossier",null,null,"Nombre de points attribués à cet item","Nombre de points obtenus",null,null,"BILAN",null,null,null,null,null,null,null,null,null,"HIERARCHISATION"]
[null,null,null,null,null,null,null,"TOTAL BILAN :",{"$f":"SUM(J6,J9,J15,J20,J23)","v":0},null,null,null,null,null,null,null,null,null,"TOTAL HIERARCHISATION:",null,{"$f":"SUM(U6,U10,U17)","v":0}]
[]
[" \"clarté\" de la présentation",null,null,null,null,2]
[null,null,null,null,null,null,null,"Critères évalués pour le bilan ostéopathique","Nombre de points attribués à cet item","Nombre de points obtenus",null,null,null,null,null,null,null,null,"Critères évalués pour la hiérarchisations des dysfonctions retrouvées au cours du bilan","Nombre de points attribués à cet item","Nombre de points obtenus"]
["Synthèse en 1 phrase du (des) motif(s) et de leur anamnèse",null,null,null,null,3,null,"Être capable de mener",null,null,null,null,null,null,null,null,null,null,"Être capable de proposer à la fin de chaque  routine de tests une hiérarchisation avec les connaissances  requises à l'instant \"t\""]
[null,null,null,null,null,"total dossier",{"$f":"SUM(G4,G6)","v":0},"une routine exhaustive de tests à réponse binaire"]
[null,null,null,null,null,null,null,null,3]
[null,null,"Note finale",null,{"$f":"SUM(G7,I2,U2)","v":0},null,null,"Être capable d'intercaler, dans la routine ostéopathique, les tests médicaux, indispensables, au vu du cas clinique",null,null,null,null,null,null,null,null,null,null,null,2]
[null,null,null,null,null,null,null,null,null,null,null,null,null,null,null,null,null,null,"Être capable de proposer oralement une chaîne dysfonctionnelle avec le soucis d'être cohérent, de se baser sur des élements anatomiques précis et des liens logiques, tout en s'obligeant à relier ces élements au substrat anatomique en jeu dans les différents motifs"]
[]
[null,null,null,null,null,null,null,null,1]
[]
[]
[null,null,null,null,null,null,null,"Être capable de gérer son \"attitude mentale\" face à un test ostéopathique positif :"]
[null,null,null,null,null,null,null,null,null,null,null,null,null,null,null,null,null,null,null,3]
[null,null,null,null,null,null,null,"quelle valeur lui accorder ?",null,null,null,null,null,null,null,null,null,null,"Être capable d'expliquer oralement, de manière synthétique et précises  les motivations de la hiérarchisation et les résultats obtenus"]
[null,null,null,null,null,null,null,"conditionne t'il la suite de ma routine de tests ?"]
[null,null,null,null,null,null,null,null,1]
[null,null,null,null,null,null,null,"Être capable d'autorégulation face à des élements du bilan qui paraissent à \"première vue\" incohérents",null,null,null,null,null,null,null,null,null,null,null,1]
[]
[null,null,null,null,null,null,null,null,2]
[null,null,null,null,null,null,null,"Faire preuve  de présence, d'intention, d'implication et de \"visualisation anatomique\" lors de la réalisation de la routine de tests"]
[]
[]
[null,null,null,null,null,null,null,null,2]

{"sheet":"LECOMTE Alexandra","index":13,"n_rows":26,"n_cols":21,"rows_kept":26,"cut":false,"hidden":false,"merged":[[16,21,19,21],[19,7,21,7],[19,9,21,9],[19,10,21,10],[22,7,25,7],[22,9,25,9],[22,10,25,10],[8,7,13,7],[8,9,13,9],[8,10,13,10],[9,18,15,18],[9,20,15,20],[9,21,15,21],[14,9,18,9],[14,10,18,10],[16,18,19,18],[16,20,19,20],[2,10,4,10],[2,21,4,21],[5,9,7,9],[5,10,7,10],[5,18,8,18],[5,20,8,20],[5,21,8,21]]}
[null,null,"Dossier",null,null,"Nombre de points attribués à cet item","Nombre de points obtenus",null,null,"BILAN",null,null,null,null,null,null,null,null,null,"HIERARCHISATION"]
[null,null,null,null,null,null,null,"TOTAL BILAN :",{"$f":"SUM(J6,J9,J15,J20,J23)","v":0},null,null,null,null,null,null,null,null,null,"TOTAL HIERARCHISATION:",null,{"$f":"SUM(U6,U10,U17)","v":0}]
[]
[" \"clarté\" de la présentation",null,null,null,null,2]
[null,null,null,null,null,null,null,"Critères évalués pour le bilan ostéopathique","Nombre de points attribués à cet item","Nombre de points obtenus",null,null,null,null,null,null,null,null,"Critères évalués pour la hiérarchisations des dysfonctions retrouvées au cours du bilan","Nombre de points attribués à cet item","Nombre de points obtenus"]
["Synthèse en 1 phrase du (des) motif(s) et de leur anamnèse",null,null,null,null,3,null,"Être capable de mener",null,null,null,null,null,null,null,null,null,null,"Être capable de proposer à la fin de chaque  routine de tests une hiérarchisation avec les connaissances  requises à l'instant \"t\""]
[null,null,null,null,null,"total dossier",{"$f":"SUM(G4,G6)","v":0},"une routine exhaustive de tests à réponse binaire"]
[null,null,null,null,null,null,null,null,3]
[null,null,"Note finale",null,{"$f":"SUM(G7,I2,U2)","v":0},null,null,"Être capable d'intercaler, dans la routine ostéopathique, les tests médicaux, indispensables, au vu du cas clinique",null,null,null,null,null,null,null,null,null,null,null,2]
[null,null,null,null,null,null,null,null,null,null,null,null,null,null,null,null,null,null,"Être capable de proposer oralement une chaîne dysfonctionnelle avec le soucis d'être cohérent, de se baser sur des élements anatomiques précis et des liens logiques, tout en s'obligeant à relier ces élements au substrat anatomique en jeu dans les différents motifs"]
[]
[null,null,null,null,null,null,null,null,1]
[]
[]
[null,null,null,null,null,null,null,"Être capable de gérer son \"attitude mentale\" face à un test ostéopathique positif :"]
[null,null,null,null,null,null,null,null,null,null,null,null,null,null,null,null,null,null,null,3]
[null,null,null,null,null,null,null,"quelle valeur lui accorder ?",null,null,null,null,null,null,null,null,null,null,"Être capable d'expliquer oralement, de manière synthétique et précises  les motivations de la hiérarchisation et les résultats obtenus"]
[null,null,null,null,null,null,null,"conditionne t'il la suite de ma routine de tests ?"]
[null,null,null,null,null,null,null,null,1]
[null,null,null,null,null,null,null,"Être capable d'autorégulation face à des élements du bilan qui paraissent à \"première vue\" incohérents",null,null,null,null,null,null,null,null,null,null,null,1]
[]
[null,null,null,null,null,null,null,null,2]
[null,null,null,null,null,null,null,"Faire preuve  de présence, d'intention, d'implication et de \"visualisation anatomique\" lors de la réalisation de la routine de tests"]
[]
[]
[null,null,null,null,null,null,null,null,2]

{"sheet":"LOISELEUR Clément","index":14,"n_rows":26,"n_cols":21,"rows_kept":26,"cut":false,"hidden":false,"merged":[[16,21,19,21],[19,7,21,7],[19,9,21,9],[19,10,21,10],[22,7,25,7],[22,9,25,9],[22,10,25,10],[8,7,13,7],[8,9,13,9],[8,10,13,10],[9,18,15,18],[9,20,15,20],[9,21,15,21],[14,9,18,9],[14,10,18,10],[16,18,19,18],[16,20,19,20],[2,10,4,10],[2,21,4,21],[5,9,7,9],[5,10,7,10],[5,18,8,18],[5,20,8,20],[5,21,8,21]]}
[null,null,"Dossier",null,null,"Nombre de points attribués à cet item","Nombre de points obtenus",null,null,"BILAN",null,null,null,null,null,null,null,null,null,"HIERARCHISATION"]
[null,null,null,null,null,null,null,"TOTAL BILAN :",{"$f":"SUM(J6,J9,J15,J20,J23)","v":0},null,null,null,null,null,null,null,null,null,"TOTAL HIERARCHISATION:",null,{"$f":"SUM(U6,U10,U17)","v":0}]
[]
[" \"clarté\" de la présentation",null,null,null,null,2]
[null,null,null,null,null,null,null,"Critères évalués pour le bilan ostéopathique","Nombre de points attribués à cet item","Nombre de points obtenus",null,null,null,null,null,null,null,null,"Critères évalués pour la hiérarchisations des dysfonctions retrouvées au cours du bilan","Nombre de points attribués à cet item","Nombre de points obtenus"]
["Synthèse en 1 phrase du (des) motif(s) et de leur anamnèse",null,null,null,null,3,null,"Être capable de mener",null,null,null,null,null,null,null,null,null,null,"Être capable de proposer à la fin de chaque  routine de tests une hiérarchisation avec les connaissances  requises à l'instant \"t\""]
[null,null,null,null,null,"total dossier",{"$f":"SUM(G4,G6)","v":0},"une routine exhaustive de tests à réponse binaire"]
[null,null,null,null,null,null,null,null,3]
[null,null,"Note finale",null,{"$f":"SUM(G7,I2,U2)","v":0},null,null,"Être capable d'intercaler, dans la routine ostéopathique, les tests médicaux, indispensables, au vu du cas clinique",null,null,null,null,null,null,null,null,null,null,null,2]
[null,null,null,null,null,null,null,null,null,null,null,null,null,null,null,null,null,null,"Être capable de proposer oralement une chaîne dysfonctionnelle avec le soucis d'être cohérent, de se baser sur des élements anatomiques précis et des liens logiques, tout en s'obligeant à relier ces élements au substrat anatomique en jeu dans les différents motifs"]
[]
[null,null,null,null,null,null,null,null,1]
[]
[]
[null,null,null,null,null,null,null,"Être capable de gérer son \"attitude mentale\" face à un test ostéopathique positif :"]
[null,null,null,null,null,null,null,null,null,null,null,null,null,null,null,null,null,null,null,3]
[null,null,null,null,null,null,null,"quelle valeur lui accorder ?",null,null,null,null,null,null,null,null,null,null,"Être capable d'expliquer oralement, de manière synthétique et précises  les motivations de la hiérarchisation et les résultats obtenus"]
[null,null,null,null,null,null,null,"conditionne t'il la suite de ma routine de tests ?"]
[null,null,null,null,null,null,null,null,1]
[null,null,null,null,null,null,null,"Être capable d'autorégulation face à des élements du bilan qui paraissent à \"première vue\" incohérents",null,null,null,null,null,null,null,null,null,null,null,1]
[]
[null,null,null,null,null,null,null,null,2]
[null,null,null,null,null,null,null,"Faire preuve  de présence, d'intention, d'implication et de \"visualisation anatomique\" lors de la réalisation de la routine de tests"]
[]
[]
[null,null,null,null,null,null,null,null,2]

{"sheet":"MEGDOUD Ahmed","index":15,"n_rows":26,"n_cols":21,"rows_kept":26,"cut":false,"hidden":false,"merged":[[16,21,19,21],[19,7,21,7],[19,9,21,9],[19,10,21,10],[22,7,25,7],[22,9,25,9],[22,10,25,10],[8,7,13,7],[8,9,13,9],[8,10,13,10],[9,18,15,18],[9,20,15,20],[9,21,15,21],[14,9,18,9],[14,10,18,10],[16,18,19,18],[16,20,19,20],[2,10,4,10],[2,21,4,21],[5,9,7,9],[5,10,7,10],[5,18,8,18],[5,20,8,20],[5,21,8,21]]}
[null,null,"Dossier",null,null,"Nombre de points attribués à cet item","Nombre de points obtenus",null,null,"BILAN",null,null,null,null,null,null,null,null,null,"HIERARCHISATION"]
[null,null,null,null,null,null,null,"TOTAL BILAN :",{"$f":"SUM(J6,J9,J15,J20,J23)","v":0},null,null,null,null,null,null,null,null,null,"TOTAL HIERARCHISATION:",null,{"$f":"SUM(U6,U10,U17)","v":0}]
[]
[" \"clarté\" de la présentation",null,null,null,null,2]
[null,null,null,null,null,null,null,"Critères évalués pour le bilan ostéopathique","Nombre de points attribués à cet item","Nombre de points obtenus",null,null,null,null,null,null,null,null,"Critères évalués pour la hiérarchisations des dysfonctions retrouvées au cours du bilan","Nombre de points attribués à cet item","Nombre de points obtenus"]
["Synthèse en 1 phrase du (des) motif(s) et de leur anamnèse",null,null,null,null,3,null,"Être capable de mener",null,null,null,null,null,null,null,null,null,null,"Être capable de proposer à la fin de chaque  routine de tests une hiérarchisation avec les connaissances  requises à l'instant \"t\""]
[null,null,null,null,null,"total dossier",{"$f":"SUM(G4,G6)","v":0},"une routine exhaustive de tests à réponse binaire"]
[null,null,null,null,null,null,null,null,3]
[null,null,"Note finale",null,{"$f":"SUM(G7,I2,U2)","v":0},null,null,"Être capable d'intercaler, dans la routine ostéopathique, les tests médicaux, indispensables, au vu du cas clinique",null,null,null,null,null,null,null,null,null,null,null,2]
[null,null,null,null,null,null,null,null,null,null,null,null,null,null,null,null,null,null,"Être capable de proposer oralement une chaîne dysfonctionnelle avec le soucis d'être cohérent, de se baser sur des élements anatomiques précis et des liens logiques, tout en s'obligeant à relier ces élements au substrat anatomique en jeu dans les différents motifs"]
[]
[null,null,null,null,null,null,null,null,1]
[]
[]
[null,null,null,null,null,null,null,"Être capable de gérer son \"attitude mentale\" face à un test ostéopathique positif :"]
[null,null,null,null,null,null,null,null,null,null,null,null,null,null,null,null,null,null,null,3]
[null,null,null,null,null,null,null,"quelle valeur lui accorder ?",null,null,null,null,null,null,null,null,null,null,"Être capable d'expliquer oralement, de manière synthétique et précises  les motivations de la hiérarchisation et les résultats obtenus"]
[null,null,null,null,null,null,null,"conditionne t'il la suite de ma routine de tests ?"]
[null,null,null,null,null,null,null,null,1]
[null,null,null,null,null,null,null,"Être capable d'autorégulation face à des élements du bilan qui paraissent à \"première vue\" incohérents",null,null,null,null,null,null,null,null,null,null,null,1]
[]
[null,null,null,null,null,null,null,null,2]
[null,null,null,null,null,null,null,"Faire preuve  de présence, d'intention, d'implication et de \"visualisation anatomique\" lors de la réalisation de la routine de tests"]
[]
[]
[null,null,null,null,null,null,null,null,2]

{"sheet":"MENTTON Clémence","index":16,"n_rows":26,"n_cols":21,"rows_kept":26,"cut":false,"hidden":false,"merged":[[16,21,19,21],[19,7,21,7],[19,9,21,9],[19,10,21,10],[22,7,25,7],[22,9,25,9],[22,10,25,10],[8,7,13,7],[8,9,13,9],[8,10,13,10],[9,18,15,18],[9,20,15,20],[9,21,15,21],[14,9,18,9],[14,10,18,10],[16,18,19,18],[16,20,19,20],[2,10,4,10],[2,21,4,21],[5,9,7,9],[5,10,7,10],[5,18,8,18],[5,20,8,20],[5,21,8,21]]}
[null,null,"Dossier",null,null,"Nombre de points attribués à cet item","Nombre de points obtenus",null,null,"BILAN",null,null,null,null,null,null,null,null,null,"HIERARCHISATION"]
[null,null,null,null,null,null,null,"TOTAL BILAN :",{"$f":"SUM(J6,J9,J15,J20,J23)","v":0},null,null,null,null,null,null,null,null,null,"TOTAL HIERARCHISATION:",null,{"$f":"SUM(U6,U10,U17)","v":0}]
[]
[" \"clarté\" de la présentation",null,null,null,null,2]
[null,null,null,null,null,null,null,"Critères évalués pour le bilan ostéopathique","Nombre de points attribués à cet item","Nombre de points obtenus",null,null,null,null,null,null,null,null,"Critères évalués pour la hiérarchisations des dysfonctions retrouvées au cours du bilan","Nombre de points attribués à cet item","Nombre de points obtenus"]
["Synthèse en 1 phrase du (des) motif(s) et de leur anamnèse",null,null,null,null,3,null,"Être capable de mener",null,null,null,null,null,null,null,null,null,null,"Être capable de proposer à la fin de chaque  routine de tests une hiérarchisation avec les connaissances  requises à l'instant \"t\""]
[null,null,null,null,null,"total dossier",{"$f":"SUM(G4,G6)","v":0},"une routine exhaustive de tests à réponse binaire"]
[null,null,null,null,null,null,null,null,3]
[null,null,"Note finale",null,{"$f":"SUM(G7,I2,U2)","v":0},null,null,"Être capable d'intercaler, dans la routine ostéopathique, les tests médicaux, indispensables, au vu du cas clinique",null,null,null,null,null,null,null,null,null,null,null,2]
[null,null,null,null,null,null,null,null,null,null,null,null,null,null,null,null,null,null,"Être capable de proposer oralement une chaîne dysfonctionnelle avec le soucis d'être cohérent, de se baser sur des élements anatomiques précis et des liens logiques, tout en s'obligeant à relier ces élements au substrat anatomique en jeu dans les différents motifs"]
[]
[null,null,null,null,null,null,null,null,1]
[]
[]
[null,null,null,null,null,null,null,"Être capable de gérer son \"attitude mentale\" face à un test ostéopathique positif :"]
[null,null,null,null,null,null,null,null,null,null,null,null,null,null,null,null,null,null,null,3]
[null,null,null,null,null,null,null,"quelle valeur lui accorder ?",null,null,null,null,null,null,null,null,null,null,"Être capable d'expliquer oralement, de manière synthétique et précises  les motivations de la hiérarchisation et les résultats obtenus"]
[null,null,null,null,null,null,null,"conditionne t'il la suite de ma routine de tests ?"]
[null,null,null,null,null,null,null,null,1]
[null,null,null,null,null,null,null,"Être capable d'autorégulation face à des élements du bilan qui paraissent à \"première vue\" incohérents",null,null,null,null,null,null,null,null,null,null,null,1]
[]
[null,null,null,null,null,null,null,null,2]
[null,null,null,null,null,null,null,"Faire preuve  de présence, d'intention, d'implication et de \"visualisation anatomique\" lors de la réalisation de la routine de tests"]
[]
[]
[null,null,null,null,null,null,null,null,2]

{"sheet":"NOGIER Samuel","index":17,"n_rows":26,"n_cols":21,"rows_kept":26,"cut":false,"hidden":false,"merged":[[16,21,19,21],[19,7,21,7],[19,9,21,9],[19,10,21,10],[22,7,25,7],[22,9,25,9],[22,10,25,10],[8,7,13,7],[8,9,13,9],[8,10,13,10],[9,18,15,18],[9,20,15,20],[9,21,15,21],[14,9,18,9],[14,10,18,10],[16,18,19,18],[16,20,19,20],[2,10,4,10],[2,21,4,21],[5,9,7,9],[5,10,7,10],[5,18,8,18],[5,20,8,20],[5,21,8,21]]}
[null,null,"Dossier",null,null,"Nombre de points attribués à cet item","Nombre de points obtenus",null,null,"BILAN",null,null,null,null,null,null,null,null,null,"HIERARCHISATION"]
[null,null,null,null,null,null,null,"TOTAL BILAN :",{"$f":"SUM(J6,J9,J15,J20,J23)","v":0},null,null,null,null,null,null,null,null,null,"TOTAL HIERARCHISATION:",null,{"$f":"SUM(U6,U10,U17)","v":0}]
[]
[" \"clarté\" de la présentation",null,null,null,null,2]
[null,null,null,null,null,null,null,"Critères évalués pour le bilan ostéopathique","Nombre de points attribués à cet item","Nombre de points obtenus",null,null,null,null,null,null,null,null,"Critères évalués pour la hiérarchisations des dysfonctions retrouvées au cours du bilan","Nombre de points attribués à cet item","Nombre de points obtenus"]
["Synthèse en 1 phrase du (des) motif(s) et de leur anamnèse",null,null,null,null,3,null,"Être capable de mener",null,null,null,null,null,null,null,null,null,null,"Être capable de proposer à la fin de chaque  routine de tests une hiérarchisation avec les connaissances  requises à l'instant \"t\""]
[null,null,null,null,null,"total dossier",{"$f":"SUM(G4,G6)","v":0},"une routine exhaustive de tests à réponse binaire"]
[null,null,null,null,null,null,null,null,3]
[null,null,"Note finale",null,{"$f":"SUM(G7,I2,U2)","v":0},null,null,"Être capable d'intercaler, dans la routine ostéopathique, les tests médicaux, indispensables, au vu du cas clinique",null,null,null,null,null,null,null,null,null,null,null,2]
[null,null,null,null,null,null,null,null,null,null,null,null,null,null,null,null,null,null,"Être capable de proposer oralement une chaîne dysfonctionnelle avec le soucis d'être cohérent, de se baser sur des élements anatomiques précis et des liens logiques, tout en s'obligeant à relier ces élements au substrat anatomique en jeu dans les différents motifs"]
[]
[null,null,null,null,null,null,null,null,1]
[]
[]
[null,null,null,null,null,null,null,"Être capable de gérer son \"attitude mentale\" face à un test ostéopathique positif :"]
[null,null,null,null,null,null,null,null,null,null,null,null,null,null,null,null,null,null,null,3]
[null,null,null,null,null,null,null,"quelle valeur lui accorder ?",null,null,null,null,null,null,null,null,null,null,"Être capable d'expliquer oralement, de manière synthétique et précises  les motivations de la hiérarchisation et les résultats obtenus"]
[null,null,null,null,null,null,null,"conditionne t'il la suite de ma routine de tests ?"]
[null,null,null,null,null,null,null,null,1]
[null,null,null,null,null,null,null,"Être capable d'autorégulation face à des élements du bilan qui paraissent à \"première vue\" incohérents",null,null,null,null,null,null,null,null,null,null,null,1]
[]
[null,null,null,null,null,null,null,null,2]
[null,null,null,null,null,null,null,"Faire preuve  de présence, d'intention, d'implication et de \"visualisation anatomique\" lors de la réalisation de la routine de tests"]
[]
[]
[null,null,null,null,null,null,null,null,2]

{"sheet":"PERRET Alexis","index":18,"n_rows":26,"n_cols":21,"rows_kept":26,"cut":false,"hidden":false,"merged":[[16,21,19,21],[19,7,21,7],[19,9,21,9],[19,10,21,10],[22,7,25,7],[22,9,25,9],[22,10,25,10],[8,7,13,7],[8,9,13,9],[8,10,13,10],[9,18,15,18],[9,20,15,20],[9,21,15,21],[14,9,18,9],[14,10,18,10],[16,18,19,18],[16,20,19,20],[2,10,4,10],[2,21,4,21],[5,9,7,9],[5,10,7,10],[5,18,8,18],[5,20,8,20],[5,21,8,21]]}
[null,null,"Dossier",null,null,"Nombre de points attribués à cet item","Nombre de points obtenus",null,null,"BILAN",null,null,null,null,null,null,null,null,null,"HIERARCHISATION"]
[null,null,null,null,null,null,null,"TOTAL BILAN :",{"$f":"SUM(J6,J9,J15,J20,J23)","v":0},null,null,null,null,null,null,null,null,null,"TOTAL HIERARCHISATION:",null,{"$f":"SUM(U6,U10,U17)","v":0}]
[]
[" \"clarté\" de la présentation",null,null,null,null,2]
[null,null,null,null,null,null,null,"Critères évalués pour le bilan ostéopathique","Nombre de points attribués à cet item","Nombre de points obtenus",null,null,null,null,null,null,null,null,"Critères évalués pour la hiérarchisations des dysfonctions retrouvées au cours du bilan","Nombre de points attribués à cet item","Nombre de points obtenus"]
["Synthèse en 1 phrase du (des) motif(s) et de leur anamnèse",null,null,null,null,3,null,"Être capable de mener",null,null,null,null,null,null,null,null,null,null,"Être capable de proposer à la fin de chaque  routine de tests une hiérarchisation avec les connaissances  requises à l'instant \"t\""]
[null,null,null,null,null,"total dossier",{"$f":"SUM(G4,G6)","v":0},"une routine exhaustive de tests à réponse binaire"]
[null,null,null,null,null,null,null,null,3]
[null,null,"Note finale",null,{"$f":"SUM(G7,I2,U2)","v":0},null,null,"Être capable d'intercaler, dans la routine ostéopathique, les tests médicaux, indispensables, au vu du cas clinique",null,null,null,null,null,null,null,null,null,null,null,2]
[null,null,null,null,null,null,null,null,null,null,null,null,null,null,null,null,null,null,"Être capable de proposer oralement une chaîne dysfonctionnelle avec le soucis d'être cohérent, de se baser sur des élements anatomiques précis et des liens logiques, tout en s'obligeant à relier ces élements au substrat anatomique en jeu dans les différents motifs"]
[]
[null,null,null,null,null,null,null,null,1]
[]
[]
[null,null,null,null,null,null,null,"Être capable de gérer son \"attitude mentale\" face à un test ostéopathique positif :"]
[null,null,null,null,null,null,null,null,null,null,null,null,null,null,null,null,null,null,null,3]
[null,null,null,null,null,null,null,"quelle valeur lui accorder ?",null,null,null,null,null,null,null,null,null,null,"Être capable d'expliquer oralement, de manière synthétique et précises  les motivations de la hiérarchisation et les résultats obtenus"]
[null,null,null,null,null,null,null,"conditionne t'il la suite de ma routine de tests ?"]
[null,null,null,null,null,null,null,null,1]
[null,null,null,null,null,null,null,"Être capable d'autorégulation face à des élements du bilan qui paraissent à \"première vue\" incohérents",null,null,null,null,null,null,null,null,null,null,null,1]
[]
[null,null,null,null,null,null,null,null,2]
[null,null,null,null,null,null,null,"Faire preuve  de présence, d'intention, d'implication et de \"visualisation anatomique\" lors de la réalisation de la routine de tests"]
[]
[]
[null,null,null,null,null,null,null,null,2]

{"sheet":"PIANCONE Margaux","index":19,"n_rows":26,"n_cols":21,"rows_kept":26,"cut":false,"hidden":false,"merged":[[16,21,19,21],[19,7,21,7],[19,9,21,9],[19,10,21,10],[22,7,25,7],[22,9,25,9],[22,10,25,10],[8,7,13,7],[8,9,13,9],[8,10,13,10],[9,18,15,18],[9,20,15,20],[9,21,15,21],[14,9,18,9],[14,10,18,10],[16,18,19,18],[16,20,19,20],[2,10,4,10],[2,21,4,21],[5,9,7,9],[5,10,7,10],[5,18,8,18],[5,20,8,20],[5,21,8,21]]}
[null,null,"Dossier",null,null,"Nombre de points attribués à cet item","Nombre de points obtenus",null,null,"BILAN",null,null,null,null,null,null,null,null,null,"HIERARCHISATION"]
[null,null,null,null,null,null,null,"TOTAL BILAN :",{"$f":"SUM(J6,J9,J15,J20,J23)","v":0},null,null,null,null,null,null,null,null,null,"TOTAL HIERARCHISATION:",null,{"$f":"SUM(U6,U10,U17)","v":0}]
[]
[" \"clarté\" de la présentation",null,null,null,null,2]
[null,null,null,null,null,null,null,"Critères évalués pour le bilan ostéopathique","Nombre de points attribués à cet item","Nombre de points obtenus",null,null,null,null,null,null,null,null,"Critères évalués pour la hiérarchisations des dysfonctions retrouvées au cours du bilan","Nombre de points attribués à cet item","Nombre de points obtenus"]
["Synthèse en 1 phrase du (des) motif(s) et de leur anamnèse",null,null,null,null,3,null,"Être capable de mener",null,null,null,null,null,null,null,null,null,null,"Être capable de proposer à la fin de chaque  routine de tests une hiérarchisation avec les connaissances  requises à l'instant \"t\""]
[null,null,null,null,null,"total dossier",{"$f":"SUM(G4,G6)","v":0},"une routine exhaustive de tests à réponse binaire"]
[null,null,null,null,null,null,null,null,3]
[null,null,"Note finale",null,{"$f":"SUM(G7,I2,U2)","v":0},null,null,"Être capable d'intercaler, dans la routine ostéopathique, les tests médicaux, indispensables, au vu du cas clinique",null,null,null,null,null,null,null,null,null,null,null,2]
[null,null,null,null,null,null,null,null,null,null,null,null,null,null,null,null,null,null,"Être capable de proposer oralement une chaîne dysfonctionnelle avec le soucis d'être cohérent, de se baser sur des élements anatomiques précis et des liens logiques, tout en s'obligeant à relier ces élements au substrat anatomique en jeu dans les différents motifs"]
[]
[null,null,null,null,null,null,null,null,1]
[]
[]
[null,null,null,null,null,null,null,"Être capable de gérer son \"attitude mentale\" face à un test ostéopathique positif :"]
[null,null,null,null,null,null,null,null,null,null,null,null,null,null,null,null,null,null,null,3]
[null,null,null,null,null,null,null,"quelle valeur lui accorder ?",null,null,null,null,null,null,null,null,null,null,"Être capable d'expliquer oralement, de manière synthétique et précises  les motivations de la hiérarchisation et les résultats obtenus"]
[null,null,null,null,null,null,null,"conditionne t'il la suite de ma routine de tests ?"]
[null,null,null,null,null,null,null,null,1]
[null,null,null,null,null,null,null,"Être capable d'autorégulation face à des élements du bilan qui paraissent à \"première vue\" incohérents",null,null,null,null,null,null,null,null,null,null,null,1]
[]
[null,null,null,null,null,null,null,null,2]
[null,null,null,null,null,null,null,"Faire preuve  de présence, d'intention, d'implication et de \"visualisation anatomique\" lors de la réalisation de la routine de tests"]
[]
[]
[null,null,null,null,null,null,null,null,2]

{"sheet":"RENAULT Amandine","index":20,"n_rows":26,"n_cols":21,"rows_kept":26,"cut":false,"hidden":false,"merged":[[16,21,19,21],[19,7,21,7],[19,9,21,9],[19,10,21,10],[22,7,25,7],[22,9,25,9],[22,10,25,10],[8,7,13,7],[8,9,13,9],[8,10,13,10],[9,18,15,18],[9,20,15,20],[9,21,15,21],[14,9,18,9],[14,10,18,10],[16,18,19,18],[16,20,19,20],[2,10,4,10],[2,21,4,21],[5,9,7,9],[5,10,7,10],[5,18,8,18],[5,20,8,20],[5,21,8,21]]}
[null,null,"Dossier",null,null,"Nombre de points attribués à cet item","Nombre de points obtenus",null,null,"BILAN",null,null,null,null,null,null,null,null,null,"HIERARCHISATION"]
[null,null,null,null,null,null,null,"TOTAL BILAN :",{"$f":"SUM(J6,J9,J15,J20,J23)","v":0},null,null,null,null,null,null,null,null,null,"TOTAL HIERARCHISATION:",null,{"$f":"SUM(U6,U10,U17)","v":0}]
[]
[" \"clarté\" de la présentation",null,null,null,null,2]
[null,null,null,null,null,null,null,"Critères évalués pour le bilan ostéopathique","Nombre de points attribués à cet item","Nombre de points obtenus",null,null,null,null,null,null,null,null,"Critères évalués pour la hiérarchisations des dysfonctions retrouvées au cours du bilan","Nombre de points attribués à cet item","Nombre de points obtenus"]
["Synthèse en 1 phrase du (des) motif(s) et de leur anamnèse",null,null,null,null,3,null,"Être capable de mener",null,null,null,null,null,null,null,null,null,null,"Être capable de proposer à la fin de chaque  routine de tests une hiérarchisation avec les connaissances  requises à l'instant \"t\""]
[null,null,null,null,null,"total dossier",{"$f":"SUM(G4,G6)","v":0},"une routine exhaustive de tests à réponse binaire"]
[null,null,null,null,null,null,null,null,3]
[null,null,"Note finale",null,{"$f":"SUM(G7,I2,U2)","v":0},null,null,"Être capable d'intercaler, dans la routine ostéopathique, les tests médicaux, indispensables, au vu du cas clinique",null,null,null,null,null,null,null,null,null,null,null,2]
[null,null,null,null,null,null,null,null,null,null,null,null,null,null,null,null,null,null,"Être capable de proposer oralement une chaîne dysfonctionnelle avec le soucis d'être cohérent, de se baser sur des élements anatomiques précis et des liens logiques, tout en s'obligeant à relier ces élements au substrat anatomique en jeu dans les différents motifs"]
[]
[null,null,null,null,null,null,null,null,1]
[]
[]
[null,null,null,null,null,null,null,"Être capable de gérer son \"attitude mentale\" face à un test ostéopathique positif :"]
[null,null,null,null,null,null,null,null,null,null,null,null,null,null,null,null,null,null,null,3]
[null,null,null,null,null,null,null,"quelle valeur lui accorder ?",null,null,null,null,null,null,null,null,null,null,"Être capable d'expliquer oralement, de manière synthétique et précises  les motivations de la hiérarchisation et les résultats obtenus"]
[null,null,null,null,null,null,null,"conditionne t'il la suite de ma routine de tests ?"]
[null,null,null,null,null,null,null,null,1]
[null,null,null,null,null,null,null,"Être capable d'autorégulation face à des élements du bilan qui paraissent à \"première vue\" incohérents",null,null,null,null,null,null,null,null,null,null,null,1]
[]
[null,null,null,null,null,null,null,null,2]
[null,null,null,null,null,null,null,"Faire preuve  de présence, d'intention, d'implication et de \"visualisation anatomique\" lors de la réalisation de la routine de tests"]
[]
[]
[null,null,null,null,null,null,null,null,2]

{"sheet":"RONDIER Maël","index":21,"n_rows":26,"n_cols":21,"rows_kept":26,"cut":false,"hidden":false,"merged":[[16,21,19,21],[19,7,21,7],[19,9,21,9],[19,10,21,10],[22,7,25,7],[22,9,25,9],[22,10,25,10],[8,7,13,7],[8,9,13,9],[8,10,13,10],[9,18,15,18],[9,20,15,20],[9,21,15,21],[14,9,18,9],[14,10,18,10],[16,18,19,18],[16,20,19,20],[2,10,4,10],[2,21,4,21],[5,9,7,9],[5,10,7,10],[5,18,8,18],[5,20,8,20],[5,21,8,21]]}
[null,null,"Dossier",null,null,"Nombre de points attribués à cet item","Nombre de points obtenus",null,null,"BILAN",null,null,null,null,null,null,null,null,null,"HIERARCHISATION"]
[null,null,null,null,null,null,null,"TOTAL BILAN :",{"$f":"SUM(J6,J9,J15,J20,J23)","v":0},null,null,null,null,null,null,null,null,null,"TOTAL HIERARCHISATION:",null,{"$f":"SUM(U6,U10,U17)","v":0}]
[]
[" \"clarté\" de la présentation",null,null,null,null,2]
[null,null,null,null,null,null,null,"Critères évalués pour le bilan ostéopathique","Nombre de points attribués à cet item","Nombre de points obtenus",null,null,null,null,null,null,null,null,"Critères évalués pour la hiérarchisations des dysfonctions retrouvées au cours du bilan","Nombre de points attribués à cet item","Nombre de points obtenus"]
["Synthèse en 1 phrase du (des) motif(s) et de leur anamnèse",null,null,null,null,3,null,"Être capable de mener",null,null,null,null,null,null,null,null,null,null,"Être capable de proposer à la fin de chaque  routine de tests une hiérarchisation avec les connaissances  requises à l'instant \"t\""]
[null,null,null,null,null,"total dossier",{"$f":"SUM(G4,G6)","v":0},"une routine exhaustive de tests à réponse binaire"]
[null,null,null,null,null,null,null,null,3]
[null,null,"Note finale",null,{"$f":"SUM(G7,I2,U2)","v":0},null,null,"Être capable d'intercaler, dans la routine ostéopathique, les tests médicaux, indispensables, au vu du cas clinique",null,null,null,null,null,null,null,null,null,null,null,2]
[null,null,null,null,null,null,null,null,null,null,null,null,null,null,null,null,null,null,"Être capable de proposer oralement une chaîne dysfonctionnelle avec le soucis d'être cohérent, de se baser sur des élements anatomiques précis et des liens logiques, tout en s'obligeant à relier ces élements au substrat anatomique en jeu dans les différents motifs"]
[]
[null,null,null,null,null,null,null,null,1]
[]
[]
[null,null,null,null,null,null,null,"Être capable de gérer son \"attitude mentale\" face à un test ostéopathique positif :"]
[null,null,null,null,null,null,null,null,null,null,null,null,null,null,null,null,null,null,null,3]
[null,null,null,null,null,null,null,"quelle valeur lui accorder ?",null,null,null,null,null,null,null,null,null,null,"Être capable d'expliquer oralement, de manière synthétique et précises  les motivations de la hiérarchisation et les résultats obtenus"]
[null,null,null,null,null,null,null,"conditionne t'il la suite de ma routine de tests ?"]
[null,null,null,null,null,null,null,null,1]
[null,null,null,null,null,null,null,"Être capable d'autorégulation face à des élements du bilan qui paraissent à \"première vue\" incohérents",null,null,null,null,null,null,null,null,null,null,null,1]
[]
[null,null,null,null,null,null,null,null,2]
[null,null,null,null,null,null,null,"Faire preuve  de présence, d'intention, d'implication et de \"visualisation anatomique\" lors de la réalisation de la routine de tests"]
[]
[]
[null,null,null,null,null,null,null,null,2]

{"sheet":"SCALIA Jilian","index":22,"n_rows":26,"n_cols":21,"rows_kept":26,"cut":false,"hidden":false,"merged":[[16,21,19,21],[19,7,21,7],[19,9,21,9],[19,10,21,10],[22,7,25,7],[22,9,25,9],[22,10,25,10],[8,7,13,7],[8,9,13,9],[8,10,13,10],[9,18,15,18],[9,20,15,20],[9,21,15,21],[14,9,18,9],[14,10,18,10],[16,18,19,18],[16,20,19,20],[2,10,4,10],[2,21,4,21],[5,9,7,9],[5,10,7,10],[5,18,8,18],[5,20,8,20],[5,21,8,21]]}
[null,null,"Dossier",null,null,"Nombre de points attribués à cet item","Nombre de points obtenus",null,null,"BILAN",null,null,null,null,null,null,null,null,null,"HIERARCHISATION"]
[null,null,null,null,null,null,null,"TOTAL BILAN :",{"$f":"SUM(J6,J9,J15,J20,J23)","v":0},null,null,null,null,null,null,null,null,null,"TOTAL HIERARCHISATION:",null,{"$f":"SUM(U6,U10,U17)","v":0}]
[]
[" \"clarté\" de la présentation",null,null,null,null,2]
[null,null,null,null,null,null,null,"Critères évalués pour le bilan ostéopathique","Nombre de points attribués à cet item","Nombre de points obtenus",null,null,null,null,null,null,null,null,"Critères évalués pour la hiérarchisations des dysfonctions retrouvées au cours du bilan","Nombre de points attribués à cet item","Nombre de points obtenus"]
["Synthèse en 1 phrase du (des) motif(s) et de leur anamnèse",null,null,null,null,3,null,"Être capable de mener",null,null,null,null,null,null,null,null,null,null,"Être capable de proposer à la fin de chaque  routine de tests une hiérarchisation avec les connaissances  requises à l'instant \"t\""]
[null,null,null,null,null,"total dossier",{"$f":"SUM(G4,G6)","v":0},"une routine exhaustive de tests à réponse binaire"]
[null,null,null,null,null,null,null,null,3]
[null,null,"Note finale",null,{"$f":"SUM(G7,I2,U2)","v":0},null,null,"Être capable d'intercaler, dans la routine ostéopathique, les tests médicaux, indispensables, au vu du cas clinique",null,null,null,null,null,null,null,null,null,null,null,2]
[null,null,null,null,null,null,null,null,null,null,null,null,null,null,null,null,null,null,"Être capable de proposer oralement une chaîne dysfonctionnelle avec le soucis d'être cohérent, de se baser sur des élements anatomiques précis et des liens logiques, tout en s'obligeant à relier ces élements au substrat anatomique en jeu dans les différents motifs"]
[]
[null,null,null,null,null,null,null,null,1]
[]
[]
[null,null,null,null,null,null,null,"Être capable de gérer son \"attitude mentale\" face à un test ostéopathique positif :"]
[null,null,null,null,null,null,null,null,null,null,null,null,null,null,null,null,null,null,null,3]
[null,null,null,null,null,null,null,"quelle valeur lui accorder ?",null,null,null,null,null,null,null,null,null,null,"Être capable d'expliquer oralement, de manière synthétique et précises  les motivations de la hiérarchisation et les résultats obtenus"]
[null,null,null,null,null,null,null,"conditionne t'il la suite de ma routine de tests ?"]
[null,null,null,null,null,null,null,null,1]
[null,null,null,null,null,null,null,"Être capable d'autorégulation face à des élements du bilan qui paraissent à \"première vue\" incohérents",null,null,null,null,null,null,null,null,null,null,null,1]
[]
[null,null,null,null,null,null,null,null,2]
[null,null,null,null,null,null,null,"Faire preuve  de présence, d'intention, d'implication et de \"visualisation anatomique\" lors de la réalisation de la routine de tests"]
[]
[]
[null,null,null,null,null,null,null,null,2]

{"sheet":"SEGUIN Justine","index":23,"n_rows":26,"n_cols":21,"rows_kept":26,"cut":false,"hidden":false,"merged":[[16,21,19,21],[19,7,21,7],[19,9,21,9],[19,10,21,10],[22,7,25,7],[22,9,25,9],[22,10,25,10],[8,7,13,7],[8,9,13,9],[8,10,13,10],[9,18,15,18],[9,20,15,20],[9,21,15,21],[14,9,18,9],[14,10,18,10],[16,18,19,18],[16,20,19,20],[2,10,4,10],[2,21,4,21],[5,9,7,9],[5,10,7,10],[5,18,8,18],[5,20,8,20],[5,21,8,21]]}
[null,null,"Dossier",null,null,"Nombre de points attribués à cet item","Nombre de points obtenus",null,null,"BILAN",null,null,null,null,null,null,null,null,null,"HIERARCHISATION"]
[null,null,null,null,null,null,null,"TOTAL BILAN :",{"$f":"SUM(J6,J9,J15,J20,J23)","v":0},null,null,null,null,null,null,null,null,null,"TOTAL HIERARCHISATION:",null,{"$f":"SUM(U6,U10,U17)","v":0}]
[]
[" \"clarté\" de la présentation",null,null,null,null,2]
[null,null,null,null,null,null,null,"Critères évalués pour le bilan ostéopathique","Nombre de points attribués à cet item","Nombre de points obtenus",null,null,null,null,null,null,null,null,"Critères évalués pour la hiérarchisations des dysfonctions retrouvées au cours du bilan","Nombre de points attribués à cet item","Nombre de points obtenus"]
["Synthèse en 1 phrase du (des) motif(s) et de leur anamnèse",null,null,null,null,3,null,"Être capable de mener",null,null,null,null,null,null,null,null,null,null,"Être capable de proposer à la fin de chaque  routine de tests une hiérarchisation avec les connaissances  requises à l'instant \"t\""]
[null,null,null,null,null,"total dossier",{"$f":"SUM(G4,G6)","v":0},"une routine exhaustive de tests à réponse binaire"]
[null,null,null,null,null,null,null,null,3]
[null,null,"Note finale",null,{"$f":"SUM(G7,I2,U2)","v":0},null,null,"Être capable d'intercaler, dans la routine ostéopathique, les tests médicaux, indispensables, au vu du cas clinique",null,null,null,null,null,null,null,null,null,null,null,2]
[null,null,null,null,null,null,null,null,null,null,null,null,null,null,null,null,null,null,"Être capable de proposer oralement une chaîne dysfonctionnelle avec le soucis d'être cohérent, de se baser sur des élements anatomiques précis et des liens logiques, tout en s'obligeant à relier ces élements au substrat anatomique en jeu dans les différents motifs"]
[]
[null,null,null,null,null,null,null,null,1]
[]
[]
[null,null,null,null,null,null,null,"Être capable de gérer son \"attitude mentale\" face à un test ostéopathique positif :"]
[null,null,null,null,null,null,null,null,null,null,null,null,null,null,null,null,null,null,null,3]
[null,null,null,null,null,null,null,"quelle valeur lui accorder ?",null,null,null,null,null,null,null,null,null,null,"Être capable d'expliquer oralement, de manière synthétique et précises  les motivations de la hiérarchisation et les résultats obtenus"]
[null,null,null,null,null,null,null,"conditionne t'il la suite de ma routine de tests ?"]
[null,null,null,null,null,null,null,null,1]
[null,null,null,null,null,null,null,"Être capable d'autorégulation face à des élements du bilan qui paraissent à \"première vue\" incohérents",null,null,null,null,null,null,null,null,null,null,null,1]
[]
[null,null,null,null,null,null,null,null,2]
[null,null,null,null,null,null,null,"Faire preuve  de présence, d'intention, d'implication et de \"visualisation anatomique\" lors de la réalisation de la routine de tests"]
[]
[]
[null,null,null,null,null,null,null,null,2]

{"sheet":"SERFATY LICHA Yona","index":24,"n_rows":26,"n_cols":21,"rows_kept":26,"cut":false,"hidden":false,"merged":[[16,21,19,21],[19,7,21,7],[19,9,21,9],[19,10,21,10],[22,7,25,7],[22,9,25,9],[22,10,25,10],[8,7,13,7],[8,9,13,9],[8,10,13,10],[9,18,15,18],[9,20,15,20],[9,21,15,21],[14,9,18,9],[14,10,18,10],[16,18,19,18],[16,20,19,20],[2,10,4,10],[2,21,4,21],[5,9,7,9],[5,10,7,10],[5,18,8,18],[5,20,8,20],[5,21,8,21]]}
[null,null,"Dossier",null,null,"Nombre de points attribués à cet item","Nombre de points obtenus",null,null,"BILAN",null,null,null,null,null,null,null,null,null,"HIERARCHISATION"]
[null,null,null,null,null,null,null,"TOTAL BILAN :",{"$f":"SUM(J6,J9,J15,J20,J23)","v":0},null,null,null,null,null,null,null,null,null,"TOTAL HIERARCHISATION:",null,{"$f":"SUM(U6,U10,U17)","v":0}]
[]
[" \"clarté\" de la présentation",null,null,null,null,2]
[null,null,null,null,null,null,null,"Critères évalués pour le bilan ostéopathique","Nombre de points attribués à cet item","Nombre de points obtenus",null,null,null,null,null,null,null,null,"Critères évalués pour la hiérarchisations des dysfonctions retrouvées au cours du bilan","Nombre de points attribués à cet item","Nombre de points obtenus"]
["Synthèse en 1 phrase du (des) motif(s) et de leur anamnèse",null,null,null,null,3,null,"Être capable de mener",null,null,null,null,null,null,null,null,null,null,"Être capable de proposer à la fin de chaque  routine de tests une hiérarchisation avec les connaissances  requises à l'instant \"t\""]
[null,null,null,null,null,"total dossier",{"$f":"SUM(G4,G6)","v":0},"une routine exhaustive de tests à réponse binaire"]
[null,null,null,null,null,null,null,null,3]
[null,null,"Note finale",null,{"$f":"SUM(G7,I2,U2)","v":0},null,null,"Être capable d'intercaler, dans la routine ostéopathique, les tests médicaux, indispensables, au vu du cas clinique",null,null,null,null,null,null,null,null,null,null,null,2]
[null,null,null,null,null,null,null,null,null,null,null,null,null,null,null,null,null,null,"Être capable de proposer oralement une chaîne dysfonctionnelle avec le soucis d'être cohérent, de se baser sur des élements anatomiques précis et des liens logiques, tout en s'obligeant à relier ces élements au substrat anatomique en jeu dans les différents motifs"]
[]
[null,null,null,null,null,null,null,null,1]
[]
[]
[null,null,null,null,null,null,null,"Être capable de gérer son \"attitude mentale\" face à un test ostéopathique positif :"]
[null,null,null,null,null,null,null,null,null,null,null,null,null,null,null,null,null,null,null,3]
[null,null,null,null,null,null,null,"quelle valeur lui accorder ?",null,null,null,null,null,null,null,null,null,null,"Être capable d'expliquer oralement, de manière synthétique et précises  les motivations de la hiérarchisation et les résultats obtenus"]
[null,null,null,null,null,null,null,"conditionne t'il la suite de ma routine de tests ?"]
[null,null,null,null,null,null,null,null,1]
[null,null,null,null,null,null,null,"Être capable d'autorégulation face à des élements du bilan qui paraissent à \"première vue\" incohérents",null,null,null,null,null,null,null,null,null,null,null,1]
[]
[null,null,null,null,null,null,null,null,2]
[null,null,null,null,null,null,null,"Faire preuve  de présence, d'intention, d'implication et de \"visualisation anatomique\" lors de la réalisation de la routine de tests"]
[]
[]
[null,null,null,null,null,null,null,null,2]

{"sheet":"SERGENTET Eline","index":25,"n_rows":26,"n_cols":21,"rows_kept":26,"cut":false,"hidden":false,"merged":[[16,21,19,21],[19,7,21,7],[19,9,21,9],[19,10,21,10],[22,7,25,7],[22,9,25,9],[22,10,25,10],[8,7,13,7],[8,9,13,9],[8,10,13,10],[9,18,15,18],[9,20,15,20],[9,21,15,21],[14,9,18,9],[14,10,18,10],[16,18,19,18],[16,20,19,20],[2,10,4,10],[2,21,4,21],[5,9,7,9],[5,10,7,10],[5,18,8,18],[5,20,8,20],[5,21,8,21]]}
[null,null,"Dossier",null,null,"Nombre de points attribués à cet item","Nombre de points obtenus",null,null,"BILAN",null,null,null,null,null,null,null,null,null,"HIERARCHISATION"]
[null,null,null,null,null,null,null,"TOTAL BILAN :",{"$f":"SUM(J6,J9,J15,J20,J23)","v":0},null,null,null,null,null,null,null,null,null,"TOTAL HIERARCHISATION:",null,{"$f":"SUM(U6,U10,U17)","v":0}]
[]
[" \"clarté\" de la présentation",null,null,null,null,2]
[null,null,null,null,null,null,null,"Critères évalués pour le bilan ostéopathique","Nombre de points attribués à cet item","Nombre de points obtenus",null,null,null,null,null,null,null,null,"Critères évalués pour la hiérarchisations des dysfonctions retrouvées au cours du bilan","Nombre de points attribués à cet item","Nombre de points obtenus"]
["Synthèse en 1 phrase du (des) motif(s) et de leur anamnèse",null,null,null,null,3,null,"Être capable de mener",null,null,null,null,null,null,null,null,null,null,"Être capable de proposer à la fin de chaque  routine de tests une hiérarchisation avec les connaissances  requises à l'instant \"t\""]
[null,null,null,null,null,"total dossier",{"$f":"SUM(G4,G6)","v":0},"une routine exhaustive de tests à réponse binaire"]
[null,null,null,null,null,null,null,null,3]
[null,null,"Note finale",null,{"$f":"SUM(G7,I2,U2)","v":0},null,null,"Être capable d'intercaler, dans la routine ostéopathique, les tests médicaux, indispensables, au vu du cas clinique",null,null,null,null,null,null,null,null,null,null,null,2]
[null,null,null,null,null,null,null,null,null,null,null,null,null,null,null,null,null,null,"Être capable de proposer oralement une chaîne dysfonctionnelle avec le soucis d'être cohérent, de se baser sur des élements anatomiques précis et des liens logiques, tout en s'obligeant à relier ces élements au substrat anatomique en jeu dans les différents motifs"]
[]
[null,null,null,null,null,null,null,null,1]
[]
[]
[null,null,null,null,null,null,null,"Être capable de gérer son \"attitude mentale\" face à un test ostéopathique positif :"]
[null,null,null,null,null,null,null,null,null,null,null,null,null,null,null,null,null,null,null,3]
[null,null,null,null,null,null,null,"quelle valeur lui accorder ?",null,null,null,null,null,null,null,null,null,null,"Être capable d'expliquer oralement, de manière synthétique et précises  les motivations de la hiérarchisation et les résultats obtenus"]
[null,null,null,null,null,null,null,"conditionne t'il la suite de ma routine de tests ?"]
[null,null,null,null,null,null,null,null,1]
[null,null,null,null,null,null,null,"Être capable d'autorégulation face à des élements du bilan qui paraissent à \"première vue\" incohérents",null,null,null,null,null,null,null,null,null,null,null,1]
[]
[null,null,null,null,null,null,null,null,2]
[null,null,null,null,null,null,null,"Faire preuve  de présence, d'intention, d'implication et de \"visualisation anatomique\" lors de la réalisation de la routine de tests"]
[]
[]
[null,null,null,null,null,null,null,null,2]

{"sheet":"SIBILE Chloé","index":26,"n_rows":26,"n_cols":21,"rows_kept":26,"cut":false,"hidden":false,"merged":[[16,21,19,21],[19,7,21,7],[19,9,21,9],[19,10,21,10],[22,7,25,7],[22,9,25,9],[22,10,25,10],[8,7,13,7],[8,9,13,9],[8,10,13,10],[9,18,15,18],[9,20,15,20],[9,21,15,21],[14,9,18,9],[14,10,18,10],[16,18,19,18],[16,20,19,20],[2,10,4,10],[2,21,4,21],[5,9,7,9],[5,10,7,10],[5,18,8,18],[5,20,8,20],[5,21,8,21]]}
[null,null,"Dossier",null,null,"Nombre de points attribués à cet item","Nombre de points obtenus",null,null,"BILAN",null,null,null,null,null,null,null,null,null,"HIERARCHISATION"]
[null,null,null,null,null,null,null,"TOTAL BILAN :",{"$f":"SUM(J6,J9,J15,J20,J23)","v":0},null,null,null,null,null,null,null,null,null,"TOTAL HIERARCHISATION:",null,{"$f":"SUM(U6,U10,U17)","v":0}]
[]
[" \"clarté\" de la présentation",null,null,null,null,2]
[null,null,null,null,null,null,null,"Critères évalués pour le bilan ostéopathique","Nombre de points attribués à cet item","Nombre de points obtenus",null,null,null,null,null,null,null,null,"Critères évalués pour la hiérarchisations des dysfonctions retrouvées au cours du bilan","Nombre de points attribués à cet item","Nombre de points obtenus"]
["Synthèse en 1 phrase du (des) motif(s) et de leur anamnèse",null,null,null,null,3,null,"Être capable de mener",null,null,null,null,null,null,null,null,null,null,"Être capable de proposer à la fin de chaque  routine de tests une hiérarchisation avec les connaissances  requises à l'instant \"t\""]
[null,null,null,null,null,"total dossier",{"$f":"SUM(G4,G6)","v":0},"une routine exhaustive de tests à réponse binaire"]
[null,null,null,null,null,null,null,null,3]
[null,null,"Note finale",null,{"$f":"SUM(G7,I2,U2)","v":0},null,null,"Être capable d'intercaler, dans la routine ostéopathique, les tests médicaux, indispensables, au vu du cas clinique",null,null,null,null,null,null,null,null,null,null,null,2]
[null,null,null,null,null,null,null,null,null,null,null,null,null,null,null,null,null,null,"Être capable de proposer oralement une chaîne dysfonctionnelle avec le soucis d'être cohérent, de se baser sur des élements anatomiques précis et des liens logiques, tout en s'obligeant à relier ces élements au substrat anatomique en jeu dans les différents motifs"]
[]
[null,null,null,null,null,null,null,null,1]
[]
[]
[null,null,null,null,null,null,null,"Être capable de gérer son \"attitude mentale\" face à un test ostéopathique positif :"]
[null,null,null,null,null,null,null,null,null,null,null,null,null,null,null,null,null,null,null,3]
[null,null,null,null,null,null,null,"quelle valeur lui accorder ?",null,null,null,null,null,null,null,null,null,null,"Être capable d'expliquer oralement, de manière synthétique et précises  les motivations de la hiérarchisation et les résultats obtenus"]
[null,null,null,null,null,null,null,"conditionne t'il la suite de ma routine de tests ?"]
[null,null,null,null,null,null,null,null,1]
[null,null,null,null,null,null,null,"Être capable d'autorégulation face à des élements du bilan qui paraissent à \"première vue\" incohérents",null,null,null,null,null,null,null,null,null,null,null,1]
[]
[null,null,null,null,null,null,null,null,2]
[null,null,null,null,null,null,null,"Faire preuve  de présence, d'intention, d'implication et de \"visualisation anatomique\" lors de la réalisation de la routine de tests"]
[]
[]
[null,null,null,null,null,null,null,null,2]

{"sheet":"ZANCA Thomas","index":27,"n_rows":26,"n_cols":21,"rows_kept":26,"cut":false,"hidden":false,"merged":[[16,21,19,21],[19,7,21,7],[19,9,21,9],[19,10,21,10],[22,7,25,7],[22,9,25,9],[22,10,25,10],[8,7,13,7],[8,9,13,9],[8,10,13,10],[9,18,15,18],[9,20,15,20],[9,21,15,21],[14,9,18,9],[14,10,18,10],[16,18,19,18],[16,20,19,20],[2,10,4,10],[2,21,4,21],[5,9,7,9],[5,10,7,10],[5,18,8,18],[5,20,8,20],[5,21,8,21]]}
[null,null,"Dossier",null,null,"Nombre de points attribués à cet item","Nombre de points obtenus",null,null,"BILAN",null,null,null,null,null,null,null,null,null,"HIERARCHISATION"]
[null,null,null,null,null,null,null,"TOTAL BILAN :",{"$f":"SUM(J6,J9,J15,J20,J23)","v":0},null,null,null,null,null,null,null,null,null,"TOTAL HIERARCHISATION:",null,{"$f":"SUM(U6,U10,U17)","v":0}]
[]
[" \"clarté\" de la présentation",null,null,null,null,2]
[null,null,null,null,null,null,null,"Critères évalués pour le bilan ostéopathique","Nombre de points attribués à cet item","Nombre de points obtenus",null,null,null,null,null,null,null,null,"Critères évalués pour la hiérarchisations des dysfonctions retrouvées au cours du bilan","Nombre de points attribués à cet item","Nombre de points obtenus"]
["Synthèse en 1 phrase du (des) motif(s) et de leur anamnèse",null,null,null,null,3,null,"Être capable de mener",null,null,null,null,null,null,null,null,null,null,"Être capable de proposer à la fin de chaque  routine de tests une hiérarchisation avec les connaissances  requises à l'instant \"t\""]
[null,null,null,null,null,"total dossier",{"$f":"SUM(G4,G6)","v":0},"une routine exhaustive de tests à réponse binaire"]
[null,null,null,null,null,null,null,null,3]
[null,null,"Note finale",null,{"$f":"SUM(G7,I2,U2)","v":0},null,null,"Être capable d'intercaler, dans la routine ostéopathique, les tests médicaux, indispensables, au vu du cas clinique",null,null,null,null,null,null,null,null,null,null,null,2]
[null,null,null,null,null,null,null,null,null,null,null,null,null,null,null,null,null,null,"Être capable de proposer oralement une chaîne dysfonctionnelle avec le soucis d'être cohérent, de se baser sur des élements anatomiques précis et des liens logiques, tout en s'obligeant à relier ces élements au substrat anatomique en jeu dans les différents motifs"]
[]
[null,null,null,null,null,null,null,null,1]
[]
[]
[null,null,null,null,null,null,null,"Être capable de gérer son \"attitude mentale\" face à un test ostéopathique positif :"]
[null,null,null,null,null,null,null,null,null,null,null,null,null,null,null,null,null,null,null,3]
[null,null,null,null,null,null,null,"quelle valeur lui accorder ?",null,null,null,null,null,null,null,null,null,null,"Être capable d'expliquer oralement, de manière synthétique et précises  les motivations de la hiérarchisation et les résultats obtenus"]
[null,null,null,null,null,null,null,"conditionne t'il la suite de ma routine de tests ?"]
[null,null,null,null,null,null,null,null,1]
[null,null,null,null,null,null,null,"Être capable d'autorégulation face à des élements du bilan qui paraissent à \"première vue\" incohérents",null,null,null,null,null,null,null,null,null,null,null,1]
[]
[null,null,null,null,null,null,null,null,2]
[null,null,null,null,null,null,null,"Faire preuve  de présence, d'intention, d'implication et de \"visualisation anatomique\" lors de la réalisation de la routine de tests"]
[]
[]
[null,null,null,null,null,null,null,null,2]